Department family,Entity,Date,Expense Type,Expense area,Supplier,Transaction number,AP Amount (�)
Department of Health,NHS Sheffield CCG,31/05/2019,C&M-PMS Contract Value,PRC DELEGATED CO-COMMISSIONING,ABBEY LANE SURGERY,27182423,"23,647.00 "
Department of Health,NHS Sheffield CCG,31/05/2019,C&M-PMS Out of Hours Opt Outs,PRC DELEGATED CO-COMMISSIONING,ABBEY LANE SURGERY,27182423,13.04 
Department of Health,NHS Sheffield CCG,31/05/2019,C&M-PMS Prem Notional Rent,PRC DELEGATED CO-COMMISSIONING,ABBEY LANE SURGERY,27182423,"2,122.92 "
Department of Health,NHS Sheffield CCG,31/05/2019,C&M-PMS QOF Aspiration,PRC DELEGATED CO-COMMISSIONING,ABBEY LANE SURGERY,27182423,"2,636.98 "
Department of Health,NHS Sheffield CCG,31/05/2019,Cont Care-Physical Disab (65+),CHC ADULT FULLY FUNDED,ABBEYCARE NURSING,27253669,"51,285.78 "
Department of Health,NHS Sheffield CCG,31/05/2019,C&M-PMS Contract Value,PRC DELEGATED CO-COMMISSIONING,AVENUE MEDICAL CENTRE SHEFFIELD,27182421,"55,076.12 "
Department of Health,NHS Sheffield CCG,31/05/2019,C&M-PMS DES Minor Surgery,PRC DELEGATED CO-COMMISSIONING,AVENUE MEDICAL CENTRE SHEFFIELD,27182421,850.00 
Department of Health,NHS Sheffield CCG,31/05/2019,C&M-PMS PCO Other,PRC DELEGATED CO-COMMISSIONING,AVENUE MEDICAL CENTRE SHEFFIELD,27182421,920.60 
Department of Health,NHS Sheffield CCG,31/05/2019,C&M-PMS Prem Notional Rent,PRC DELEGATED CO-COMMISSIONING,AVENUE MEDICAL CENTRE SHEFFIELD,27182421,"5,546.67 "
Department of Health,NHS Sheffield CCG,31/05/2019,C&M-PMS Prem Rates,PRC DELEGATED CO-COMMISSIONING,AVENUE MEDICAL CENTRE SHEFFIELD,27182421,"1,264.00 "
Department of Health,NHS Sheffield CCG,31/05/2019,C&M-PMS QOF Aspiration,PRC DELEGATED CO-COMMISSIONING,AVENUE MEDICAL CENTRE SHEFFIELD,27182421,"5,847.72 "
Department of Health,NHS Sheffield CCG,31/05/2019,Hcare Srv Rec Fdtn Trust-Contract Baseline,ACUTE COMMISSIONING,BARNSLEY HOSPITAL NHS FOUNDATION TRUST,27084352,"86,710.00 "
Department of Health,NHS Sheffield CCG,31/05/2019,Other Gen Supplies & Srv,CLINICAL LEADS,BARNSLEY HOSPITAL NHS FOUNDATION TRUST,27129018,"113,754.00 "
Department of Health,NHS Sheffield CCG,31/05/2019,C&M-PMS Contract Value,PRC DELEGATED CO-COMMISSIONING,BARNSLEY ROAD SURGERY,27182425,"21,585.25 "
Department of Health,NHS Sheffield CCG,31/05/2019,C&M-PMS Prem Notional Rent,PRC DELEGATED CO-COMMISSIONING,BARNSLEY ROAD SURGERY,27182425,"2,652.17 "
Department of Health,NHS Sheffield CCG,31/05/2019,C&M-PMS QOF Aspiration,PRC DELEGATED CO-COMMISSIONING,BARNSLEY ROAD SURGERY,27182425,"2,377.21 "
Department of Health,NHS Sheffield CCG,31/05/2019,C&M-GMS DES Minor Surgery,PRC DELEGATED CO-COMMISSIONING,BASLOW ROAD & SHOREHAM STREET SURGERIES,27428978,"6,080.00 "
Department of Health,NHS Sheffield CCG,31/05/2019,C&M-GMS Global Sum,PRC DELEGATED CO-COMMISSIONING,BASLOW ROAD & SHOREHAM STREET SURGERIES,27428978,"97,868.74 "
Department of Health,NHS Sheffield CCG,31/05/2019,C&M-GMS MPIG Correction Factor,PRC DELEGATED CO-COMMISSIONING,BASLOW ROAD & SHOREHAM STREET SURGERIES,27428978,146.21 
Department of Health,NHS Sheffield CCG,31/05/2019,C&M-GMS PCO Locum Adop/Pat/Mat,PRC DELEGATED CO-COMMISSIONING,BASLOW ROAD & SHOREHAM STREET SURGERIES,27428978,"17,300.80 "
Department of Health,NHS Sheffield CCG,31/05/2019,C&M-GMS Prem Notional Rent,PRC DELEGATED CO-COMMISSIONING,BASLOW ROAD & SHOREHAM STREET SURGERIES,27428978,"8,222.71 "
Department of Health,NHS Sheffield CCG,31/05/2019,C&M-GMS Prem Rates,PRC DELEGATED CO-COMMISSIONING,BASLOW ROAD & SHOREHAM STREET SURGERIES,27428978,"2,421.00 "
Department of Health,NHS Sheffield CCG,31/05/2019,C&M-GMS QOF Aspiration,PRC DELEGATED CO-COMMISSIONING,BASLOW ROAD & SHOREHAM STREET SURGERIES,27428978,"10,278.96 "
Department of Health,NHS Sheffield CCG,31/05/2019,Cont Care-Physical Disab (65+),CHC ADULT FULLY FUNDED,BC SHEFFIELD LTD,27189972,"36,915.01 "
Department of Health,NHS Sheffield CCG,31/05/2019,C&M-PMS Contract Value,PRC DELEGATED CO-COMMISSIONING,BIRLEY HEALTH CENTRE,27182427,"63,401.19 "
Department of Health,NHS Sheffield CCG,31/05/2019,C&M-PMS DES Minor Surgery,PRC DELEGATED CO-COMMISSIONING,BIRLEY HEALTH CENTRE,27182427,"4,085.00 "
Department of Health,NHS Sheffield CCG,31/05/2019,C&M-PMS PCO Other,PRC DELEGATED CO-COMMISSIONING,BIRLEY HEALTH CENTRE,27182427,"1,071.80 "
Department of Health,NHS Sheffield CCG,31/05/2019,C&M-PMS Prem Notional Rent,PRC DELEGATED CO-COMMISSIONING,BIRLEY HEALTH CENTRE,27182427,"7,600.58 "
Department of Health,NHS Sheffield CCG,31/05/2019,C&M-PMS Prem Rates,PRC DELEGATED CO-COMMISSIONING,BIRLEY HEALTH CENTRE,27182427,"1,407.00 "
Department of Health,NHS Sheffield CCG,31/05/2019,C&M-PMS QOF Aspiration,PRC DELEGATED CO-COMMISSIONING,BIRLEY HEALTH CENTRE,27182427,"7,981.39 "
Department of Health,NHS Sheffield CCG,31/05/2019,C&M-GMS GP Training Costs,LOCAL ENHANCED SERVICES,BLUE STREAM ACADEMY,27168051,"40,000.00 "
Department of Health,NHS Sheffield CCG,31/05/2019,Clinical&Medical-Independent Sector,ACUTE COMMISSIONING,BMI HEALTHCARE LTD,27167985,"84,881.31 "
Department of Health,NHS Sheffield CCG,31/05/2019,Clinical&Medical-Independent Sector,ACUTE COMMISSIONING,BMI HEALTHCARE LTD,27442744,"(29,146.87)"
Department of Health,NHS Sheffield CCG,31/05/2019,Cont Care-Physical Disab (<65),CHC ADULT FULLY FUNDED,BONDCARE,27276828,"26,639.56 "
Department of Health,NHS Sheffield CCG,31/05/2019,Cont Care-Funded Nursing Care Allow,FUNDED NURSING CARE,BONDCARE,27277250,"39,515.70 "
Department of Health,NHS Sheffield CCG,31/05/2019,C&M-GMS Cost of Drugs -Prescribing,LOCAL ENHANCED SERVICES,BROOMHILL SURGERY,27406973,"2,330.91 "
Department of Health,NHS Sheffield CCG,31/05/2019,C&M-GMS DES Minor Surgery,PRC DELEGATED CO-COMMISSIONING,BROOMHILL SURGERY,27406973,460.00 
Department of Health,NHS Sheffield CCG,31/05/2019,C&M-GMS Global Sum,PRC DELEGATED CO-COMMISSIONING,BROOMHILL SURGERY,27406973,"64,643.54 "
Department of Health,NHS Sheffield CCG,31/05/2019,C&M-GMS MPIG Correction Factor,PRC DELEGATED CO-COMMISSIONING,BROOMHILL SURGERY,27406973,251.00 
Department of Health,NHS Sheffield CCG,31/05/2019,C&M-GMS PCO Other,PRC DELEGATED CO-COMMISSIONING,BROOMHILL SURGERY,27406973,"6,071.00 "
Department of Health,NHS Sheffield CCG,31/05/2019,C&M-GMS Prem Cost Rent,PRC DELEGATED CO-COMMISSIONING,BROOMHILL SURGERY,27406973,"2,413.75 "
Department of Health,NHS Sheffield CCG,31/05/2019,C&M-GMS Prem Notional Rent,PRC DELEGATED CO-COMMISSIONING,BROOMHILL SURGERY,27406973,"2,612.50 "
Department of Health,NHS Sheffield CCG,31/05/2019,C&M-GMS Prem Rates,PRC DELEGATED CO-COMMISSIONING,BROOMHILL SURGERY,27406973,"3,775.50 "
Department of Health,NHS Sheffield CCG,31/05/2019,C&M-GMS Prem Water Rates,PRC DELEGATED CO-COMMISSIONING,BROOMHILL SURGERY,27406973,"2,975.77 "
Department of Health,NHS Sheffield CCG,31/05/2019,C&M-GMS Prof Fees Prescribing,PRC DELEGATED CO-COMMISSIONING,BROOMHILL SURGERY,27406973,161.91 
Department of Health,NHS Sheffield CCG,31/05/2019,C&M-GMS QOF Aspiration,PRC DELEGATED CO-COMMISSIONING,BROOMHILL SURGERY,27406973,"6,211.39 "
Department of Health,NHS Sheffield CCG,31/05/2019,C&M-GMS IT Comm Servs -GP Practices,PRIMARY CARE IT,BT GLOBAL SERVICES,27388999,"24,626.34 "
Department of Health,NHS Sheffield CCG,31/05/2019,Computer Software/License,CORPORATE COSTS & SERVICES,BT GLOBAL SERVICES,27388999,"7,616.16 "
Department of Health,NHS Sheffield CCG,31/05/2019,C&M-GMS Cost of Drugs -Prescribing,LOCAL ENHANCED SERVICES,BUCHANAN ROAD SURGERY,27406969,67.28 
Department of Health,NHS Sheffield CCG,31/05/2019,C&M-GMS DES Minor Surgery,PRC DELEGATED CO-COMMISSIONING,BUCHANAN ROAD SURGERY,27406969,280.00 
Department of Health,NHS Sheffield CCG,31/05/2019,C&M-GMS Global Sum,PRC DELEGATED CO-COMMISSIONING,BUCHANAN ROAD SURGERY,27406969,"36,037.95 "
Department of Health,NHS Sheffield CCG,31/05/2019,C&M-GMS MPIG Correction Factor,PRC DELEGATED CO-COMMISSIONING,BUCHANAN ROAD SURGERY,27406969,655.25 
Department of Health,NHS Sheffield CCG,31/05/2019,C&M-GMS Prem Notional Rent,PRC DELEGATED CO-COMMISSIONING,BUCHANAN ROAD SURGERY,27406969,"2,595.83 "
Department of Health,NHS Sheffield CCG,31/05/2019,C&M-GMS Prof Fees Prescribing,PRC DELEGATED CO-COMMISSIONING,BUCHANAN ROAD SURGERY,27406969,20.56 
Department of Health,NHS Sheffield CCG,31/05/2019,C&M-GMS QOF Aspiration,PRC DELEGATED CO-COMMISSIONING,BUCHANAN ROAD SURGERY,27406969,"4,303.24 "
Department of Health,NHS Sheffield CCG,31/05/2019,C&M-PMS Contract Value,PRC DELEGATED CO-COMMISSIONING,BURNCROSS SURGERY,27182429,"120,626.37 "
Department of Health,NHS Sheffield CCG,31/05/2019,C&M-PMS DES Learn Dsblty Hlth Chk,PRC DELEGATED CO-COMMISSIONING,BURNCROSS SURGERY,27182429,"4,480.00 "
Department of Health,NHS Sheffield CCG,31/05/2019,C&M-PMS DES Minor Surgery,PRC DELEGATED CO-COMMISSIONING,BURNCROSS SURGERY,27182429,"2,820.00 "
Department of Health,NHS Sheffield CCG,31/05/2019,C&M-PMS Prem Notional Rent,PRC DELEGATED CO-COMMISSIONING,BURNCROSS SURGERY,27182429,"14,058.33 "
Department of Health,NHS Sheffield CCG,31/05/2019,C&M-PMS QOF Aspiration,PRC DELEGATED CO-COMMISSIONING,BURNCROSS SURGERY,27182429,"15,732.40 "
Department of Health,NHS Sheffield CCG,31/05/2019,C&M-PMS Contract Value,PRC DELEGATED CO-COMMISSIONING,BURNGREAVE SURGERY,27182431,"57,075.40 "
Department of Health,NHS Sheffield CCG,31/05/2019,C&M-PMS DES Learn Dsblty Hlth Chk,PRC DELEGATED CO-COMMISSIONING,BURNGREAVE SURGERY,27182431,"3,920.00 "
Department of Health,NHS Sheffield CCG,31/05/2019,C&M-PMS DES Minor Surgery,PRC DELEGATED CO-COMMISSIONING,BURNGREAVE SURGERY,27182431,825.00 
Department of Health,NHS Sheffield CCG,31/05/2019,C&M-PMS PCO Other,PRC DELEGATED CO-COMMISSIONING,BURNGREAVE SURGERY,27182431,"4,409.00 "
Department of Health,NHS Sheffield CCG,31/05/2019,C&M-PMS Prem Notional Rent,PRC DELEGATED CO-COMMISSIONING,BURNGREAVE SURGERY,27182431,"6,622.92 "
Department of Health,NHS Sheffield CCG,31/05/2019,C&M-PMS Prem Rates,PRC DELEGATED CO-COMMISSIONING,BURNGREAVE SURGERY,27182431,"2,140.00 "
Department of Health,NHS Sheffield CCG,31/05/2019,C&M-PMS QOF Aspiration,PRC DELEGATED CO-COMMISSIONING,BURNGREAVE SURGERY,27182431,"5,288.96 "
Department of Health,NHS Sheffield CCG,31/05/2019,C&M-GMS Cost of Drugs -Prescribing,LOCAL ENHANCED SERVICES,CARTERKNOWLE & DORE MEDICAL PRACTICE,27406977,"3,134.28 "
Department of Health,NHS Sheffield CCG,31/05/2019,C&M-GMS DES Minor Surgery,PRC DELEGATED CO-COMMISSIONING,CARTERKNOWLE & DORE MEDICAL PRACTICE,27406977,"2,380.00 "
Department of Health,NHS Sheffield CCG,31/05/2019,C&M-GMS Global Sum,PRC DELEGATED CO-COMMISSIONING,CARTERKNOWLE & DORE MEDICAL PRACTICE,27406977,"84,611.10 "
Department of Health,NHS Sheffield CCG,31/05/2019,C&M-GMS MPIG Correction Factor,PRC DELEGATED CO-COMMISSIONING,CARTERKNOWLE & DORE MEDICAL PRACTICE,27406977,747.29 
Department of Health,NHS Sheffield CCG,31/05/2019,C&M-GMS Prem Notional Rent,PRC DELEGATED CO-COMMISSIONING,CARTERKNOWLE & DORE MEDICAL PRACTICE,27406977,"7,596.50 "
Department of Health,NHS Sheffield CCG,31/05/2019,C&M-GMS Prof Fees Prescribing,PRC DELEGATED CO-COMMISSIONING,CARTERKNOWLE & DORE MEDICAL PRACTICE,27406977,218.45 
Department of Health,NHS Sheffield CCG,31/05/2019,C&M-GMS QOF Aspiration,PRC DELEGATED CO-COMMISSIONING,CARTERKNOWLE & DORE MEDICAL PRACTICE,27406977,"10,055.02 "
Department of Health,NHS Sheffield CCG,31/05/2019,C&M-GMS Cost of Drugs -Prescribing,LOCAL ENHANCED SERVICES,CHARNOCK HEALTH PRIMARY CARE CENTRE,27428977,608.62 
Department of Health,NHS Sheffield CCG,31/05/2019,C&M-GMS DES Minor Surgery,PRC DELEGATED CO-COMMISSIONING,CHARNOCK HEALTH PRIMARY CARE CENTRE,27428977,"1,645.00 "
Department of Health,NHS Sheffield CCG,31/05/2019,C&M-GMS Global Sum,PRC DELEGATED CO-COMMISSIONING,CHARNOCK HEALTH PRIMARY CARE CENTRE,27428977,"42,774.51 "
Department of Health,NHS Sheffield CCG,31/05/2019,C&M-GMS MPIG Correction Factor,PRC DELEGATED CO-COMMISSIONING,CHARNOCK HEALTH PRIMARY CARE CENTRE,27428977,206.62 
Department of Health,NHS Sheffield CCG,31/05/2019,C&M-GMS PCO Other,PRC DELEGATED CO-COMMISSIONING,CHARNOCK HEALTH PRIMARY CARE CENTRE,27428977,727.60 
Department of Health,NHS Sheffield CCG,31/05/2019,C&M-GMS Prem Notional Rent,PRC DELEGATED CO-COMMISSIONING,CHARNOCK HEALTH PRIMARY CARE CENTRE,27428977,335.00 
Department of Health,NHS Sheffield CCG,31/05/2019,C&M-GMS Prem Rates,PRC DELEGATED CO-COMMISSIONING,CHARNOCK HEALTH PRIMARY CARE CENTRE,27428977,"1,547.00 "
Department of Health,NHS Sheffield CCG,31/05/2019,C&M-GMS Prof Fees Prescribing,PRC DELEGATED CO-COMMISSIONING,CHARNOCK HEALTH PRIMARY CARE CENTRE,27428977,151.63 
Department of Health,NHS Sheffield CCG,31/05/2019,C&M-GMS QOF Aspiration,PRC DELEGATED CO-COMMISSIONING,CHARNOCK HEALTH PRIMARY CARE CENTRE,27428977,"4,932.79 "
Department of Health,NHS Sheffield CCG,31/05/2019,Hcare Srv Rec Fdtn Trust-Contract Baseline,ACUTE COMMISSIONING,CHESTERFIELD ROYAL HOSPITAL NHS FOUNDATION TRUST,27416613,"266,428.00 "
Department of Health,NHS Sheffield CCG,31/05/2019,Clinical&Medical-Independent Sector,ACUTE COMMISSIONING,CLAREMONT HOSPITAL,27253708,"66,095.00 "
Department of Health,NHS Sheffield CCG,31/05/2019,Clinical&Medical-Independent Sector,ACUTE COMMISSIONING,CLAREMONT HOSPITAL,27359982,"32,672.00 "
Department of Health,NHS Sheffield CCG,31/05/2019,C&M-APMS Contract Value,PRC DELEGATED CO-COMMISSIONING,CLOVER CITY PRACTICE,27182501,"27,532.64 "
Department of Health,NHS Sheffield CCG,31/05/2019,C&M-PMS QOF Aspiration,PRC DELEGATED CO-COMMISSIONING,CLOVER CITY PRACTICE,27182501,"1,537.57 "
Department of Health,NHS Sheffield CCG,31/05/2019,C&M-APMS Contract Value,PRC DELEGATED CO-COMMISSIONING,CLOVER GROUP PRACTICE,27182435,"126,479.41 "
Department of Health,NHS Sheffield CCG,31/05/2019,C&M-APMS PCO Locum Adop/Pat/Mat,PRC DELEGATED CO-COMMISSIONING,CLOVER GROUP PRACTICE,27182435,"8,219.07 "
Department of Health,NHS Sheffield CCG,31/05/2019,C&M-APMS Prem Actual Rent,PRC DELEGATED CO-COMMISSIONING,CLOVER GROUP PRACTICE,27182435,"7,973.85 "
Department of Health,NHS Sheffield CCG,31/05/2019,C&M-APMS Prem Healthcentre Rent,PRC DELEGATED CO-COMMISSIONING,CLOVER GROUP PRACTICE,27182435,"59,021.13 "
Department of Health,NHS Sheffield CCG,31/05/2019,C&M-APMS Prem Notional Rent,PRC DELEGATED CO-COMMISSIONING,CLOVER GROUP PRACTICE,27182435,"2,804.17 "
Department of Health,NHS Sheffield CCG,31/05/2019,C&M-PMS DES Learn Dsblty Hlth Chk,PRC DELEGATED CO-COMMISSIONING,CLOVER GROUP PRACTICE,27182435,"3,500.00 "
Department of Health,NHS Sheffield CCG,31/05/2019,C&M-PMS QOF Aspiration,PRC DELEGATED CO-COMMISSIONING,CLOVER GROUP PRACTICE,27182435,"11,480.20 "
Department of Health,NHS Sheffield CCG,31/05/2019,Voids and Subsidies,PRC DELEGATED CO-COMMISSIONING,COMMUNITY HEALTH PARTNERSHIPS LTD,27083622,"37,050.51 "
Department of Health,NHS Sheffield CCG,31/05/2019,Voids and Subsidies,RECHARGES NHS PROPERTY SERVICES LTD,COMMUNITY HEALTH PARTNERSHIPS LTD,27083622,"117,396.67 "
Department of Health,NHS Sheffield CCG,31/05/2019,Voids and Subsidies,PRC DELEGATED CO-COMMISSIONING,COMMUNITY HEALTH PARTNERSHIPS LTD,27253711,"37,050.51 "
Department of Health,NHS Sheffield CCG,31/05/2019,Voids and Subsidies,RECHARGES NHS PROPERTY SERVICES LTD,COMMUNITY HEALTH PARTNERSHIPS LTD,27253711,"117,396.67 "
Department of Health,NHS Sheffield CCG,31/05/2019,Cont Care-Funded Nursing Care Allow,FUNDED NURSING CARE,COUNTRY COURT CARE LTD,27277070,"32,282.78 "
Department of Health,NHS Sheffield CCG,31/05/2019,C&M-GMS Cost of Drugs -Prescribing,LOCAL ENHANCED SERVICES,CROOKES PRACTICE,27406982,592.81 
Department of Health,NHS Sheffield CCG,31/05/2019,C&M-GMS DES Learn Dsblty Hlth Chk,PRC DELEGATED CO-COMMISSIONING,CROOKES PRACTICE,27406982,"5,040.00 "
Department of Health,NHS Sheffield CCG,31/05/2019,C&M-GMS Global Sum,PRC DELEGATED CO-COMMISSIONING,CROOKES PRACTICE,27406982,"50,587.43 "
Department of Health,NHS Sheffield CCG,31/05/2019,C&M-GMS MPIG Correction Factor,PRC DELEGATED CO-COMMISSIONING,CROOKES PRACTICE,27406982,772.96 
Department of Health,NHS Sheffield CCG,31/05/2019,C&M-GMS Prem Notional Rent,PRC DELEGATED CO-COMMISSIONING,CROOKES PRACTICE,27406982,"3,874.67 "
Department of Health,NHS Sheffield CCG,31/05/2019,C&M-GMS Prem Rates,PRC DELEGATED CO-COMMISSIONING,CROOKES PRACTICE,27406982,"1,510.00 "
Department of Health,NHS Sheffield CCG,31/05/2019,C&M-GMS Prof Fees Prescribing,PRC DELEGATED CO-COMMISSIONING,CROOKES PRACTICE,27406982,113.08 
Department of Health,NHS Sheffield CCG,31/05/2019,C&M-GMS QOF Aspiration,PRC DELEGATED CO-COMMISSIONING,CROOKES PRACTICE,27406982,"4,885.77 "
Department of Health,NHS Sheffield CCG,31/05/2019,C&M-PMS Contract Value,PRC DELEGATED CO-COMMISSIONING,DEEPCAR MEDICAL CENTRE,27182437,"42,287.05 "
Department of Health,NHS Sheffield CCG,31/05/2019,C&M-PMS PCO Other,PRC DELEGATED CO-COMMISSIONING,DEEPCAR MEDICAL CENTRE,27182437,"3,528.00 "
Department of Health,NHS Sheffield CCG,31/05/2019,C&M-PMS Prem Healthcentre Rent,PRC DELEGATED CO-COMMISSIONING,DEEPCAR MEDICAL CENTRE,27182437,"29,067.58 "
Department of Health,NHS Sheffield CCG,31/05/2019,C&M-PMS QOF Aspiration,PRC DELEGATED CO-COMMISSIONING,DEEPCAR MEDICAL CENTRE,27182437,"4,298.67 "
Department of Health,NHS Sheffield CCG,31/05/2019,C&M-GMS Cost of Drugs -Prescribing,LOCAL ENHANCED SERVICES,DEVONSHIRE GREEN MEDICAL CENTRE,27406985,843.01 
Department of Health,NHS Sheffield CCG,31/05/2019,C&M-GMS DES Minor Surgery,PRC DELEGATED CO-COMMISSIONING,DEVONSHIRE GREEN MEDICAL CENTRE,27406985,165.00 
Department of Health,NHS Sheffield CCG,31/05/2019,C&M-GMS Global Sum,PRC DELEGATED CO-COMMISSIONING,DEVONSHIRE GREEN MEDICAL CENTRE,27406985,"46,344.93 "
Department of Health,NHS Sheffield CCG,31/05/2019,C&M-GMS MPIG Correction Factor,PRC DELEGATED CO-COMMISSIONING,DEVONSHIRE GREEN MEDICAL CENTRE,27406985,"1,615.60 "
Department of Health,NHS Sheffield CCG,31/05/2019,C&M-GMS Prem Notional Rent,PRC DELEGATED CO-COMMISSIONING,DEVONSHIRE GREEN MEDICAL CENTRE,27406985,"5,987.50 "
Department of Health,NHS Sheffield CCG,31/05/2019,C&M-GMS Prem Water Rates,PRC DELEGATED CO-COMMISSIONING,DEVONSHIRE GREEN MEDICAL CENTRE,27406985,331.38 
Department of Health,NHS Sheffield CCG,31/05/2019,C&M-GMS Prof Fees Prescribing,PRC DELEGATED CO-COMMISSIONING,DEVONSHIRE GREEN MEDICAL CENTRE,27406985,195.32 
Department of Health,NHS Sheffield CCG,31/05/2019,C&M-GMS QOF Aspiration,PRC DELEGATED CO-COMMISSIONING,DEVONSHIRE GREEN MEDICAL CENTRE,27406985,"4,805.68 "
Department of Health,NHS Sheffield CCG,31/05/2019,Hcare Srv Rec Fdtn Trust-Contract Baseline,ACUTE COMMISSIONING,DONCASTER AND BASSETLAW HOSPITALS NHS FOUNDATION TRUST,27155180,"44,305.00 "
Department of Health,NHS Sheffield CCG,31/05/2019,Seconded-Basic Sal-Staff fm oth org,BEREAVEMENT SERVICE,DONCASTER AND BASSETLAW HOSPITALS NHS FOUNDATION TRUST,27253557,"33,407.97 "
Department of Health,NHS Sheffield CCG,31/05/2019,Seconded-Basic Sal-Staff fm oth org,BEREAVEMENT SERVICE,DONCASTER AND BASSETLAW HOSPITALS NHS FOUNDATION TRUST,27253629,"(33,407.97)"
Department of Health,NHS Sheffield CCG,31/05/2019,Oth Travel Costs-Car Mileage,BEREAVEMENT SERVICE,DONCASTER AND BASSETLAW HOSPITALS NHS FOUNDATION TRUST,27276330,265.90 
Department of Health,NHS Sheffield CCG,31/05/2019,Other Travel Costs - Car Parking,BEREAVEMENT SERVICE,DONCASTER AND BASSETLAW HOSPITALS NHS FOUNDATION TRUST,27276330,20.75 
Department of Health,NHS Sheffield CCG,31/05/2019,Seconded-Basic Sal-Staff fm oth org,BEREAVEMENT SERVICE,DONCASTER AND BASSETLAW HOSPITALS NHS FOUNDATION TRUST,27276330,"37,804.00 "
Department of Health,NHS Sheffield CCG,31/05/2019,Seconded-Employer's NHI Costs,BEREAVEMENT SERVICE,DONCASTER AND BASSETLAW HOSPITALS NHS FOUNDATION TRUST,27276330,"4,440.11 "
Department of Health,NHS Sheffield CCG,31/05/2019,C&M-PMS Contract Value,PRC DELEGATED CO-COMMISSIONING,DOVERCOURT SURGERY,27182439,"72,538.08 "
Department of Health,NHS Sheffield CCG,31/05/2019,C&M-PMS DES Minor Surgery,PRC DELEGATED CO-COMMISSIONING,DOVERCOURT SURGERY,27182439,"3,160.00 "
Department of Health,NHS Sheffield CCG,31/05/2019,C&M-PMS Out of Hours Opt Outs,PRC DELEGATED CO-COMMISSIONING,DOVERCOURT SURGERY,27182439,16.80 
Department of Health,NHS Sheffield CCG,31/05/2019,C&M-PMS PCO Other,PRC DELEGATED CO-COMMISSIONING,DOVERCOURT SURGERY,27182439,"1,072.20 "
Department of Health,NHS Sheffield CCG,31/05/2019,C&M-PMS Prem Actual Rent,PRC DELEGATED CO-COMMISSIONING,DOVERCOURT SURGERY,27182439,"12,400.00 "
Department of Health,NHS Sheffield CCG,31/05/2019,C&M-PMS Prem Notional Rent,PRC DELEGATED CO-COMMISSIONING,DOVERCOURT SURGERY,27182439,"1,708.33 "
Department of Health,NHS Sheffield CCG,31/05/2019,C&M-PMS QOF Aspiration,PRC DELEGATED CO-COMMISSIONING,DOVERCOURT SURGERY,27182439,"7,675.00 "
Department of Health,NHS Sheffield CCG,31/05/2019,C&M-PMS Contract Value,PRC DELEGATED CO-COMMISSIONING,DR MEHROTRA & PARTNER,27182441,"26,266.83 "
Department of Health,NHS Sheffield CCG,31/05/2019,C&M-PMS Prem Actual Rent,PRC DELEGATED CO-COMMISSIONING,DR MEHROTRA & PARTNER,27182441,"2,650.00 "
Department of Health,NHS Sheffield CCG,31/05/2019,C&M-PMS Prem Notional Rent,PRC DELEGATED CO-COMMISSIONING,DR MEHROTRA & PARTNER,27182441,"5,157.29 "
Department of Health,NHS Sheffield CCG,31/05/2019,C&M-PMS QOF Aspiration,PRC DELEGATED CO-COMMISSIONING,DR MEHROTRA & PARTNER,27182441,"2,763.65 "
Department of Health,NHS Sheffield CCG,31/05/2019,C&M-PMS Contract Value,PRC DELEGATED CO-COMMISSIONING,DR MILNER & PARTNERS,27182443,"74,985.17 "
Department of Health,NHS Sheffield CCG,31/05/2019,C&M-PMS DES Learn Dsblty Hlth Chk,PRC DELEGATED CO-COMMISSIONING,DR MILNER & PARTNERS,27182443,"3,780.00 "
Department of Health,NHS Sheffield CCG,31/05/2019,C&M-PMS DES Minor Surgery,PRC DELEGATED CO-COMMISSIONING,DR MILNER & PARTNERS,27182443,"2,490.00 "
Department of Health,NHS Sheffield CCG,31/05/2019,C&M-PMS Out of Hours Opt Outs,PRC DELEGATED CO-COMMISSIONING,DR MILNER & PARTNERS,27182443,14.02 
Department of Health,NHS Sheffield CCG,31/05/2019,C&M-PMS PCO Other,PRC DELEGATED CO-COMMISSIONING,DR MILNER & PARTNERS,27182443,"6,589.00 "
Department of Health,NHS Sheffield CCG,31/05/2019,C&M-PMS Prem Actual Rent,PRC DELEGATED CO-COMMISSIONING,DR MILNER & PARTNERS,27182443,"11,382.00 "
Department of Health,NHS Sheffield CCG,31/05/2019,C&M-PMS Prem Notional Rent,PRC DELEGATED CO-COMMISSIONING,DR MILNER & PARTNERS,27182443,"4,462.42 "
Department of Health,NHS Sheffield CCG,31/05/2019,C&M-PMS Prem Rates,PRC DELEGATED CO-COMMISSIONING,DR MILNER & PARTNERS,27182443,"3,520.65 "
Department of Health,NHS Sheffield CCG,31/05/2019,C&M-PMS Prem Water Rates,PRC DELEGATED CO-COMMISSIONING,DR MILNER & PARTNERS,27182443,978.76 
Department of Health,NHS Sheffield CCG,31/05/2019,C&M-PMS QOF Aspiration,PRC DELEGATED CO-COMMISSIONING,DR MILNER & PARTNERS,27182443,"6,513.90 "
Department of Health,NHS Sheffield CCG,31/05/2019,C&M-GMS Cost of Drugs -Prescribing,LOCAL ENHANCED SERVICES,DUKE MEDICAL CENTRE,27406993,803.96 
Department of Health,NHS Sheffield CCG,31/05/2019,C&M-GMS DES Minor Surgery,PRC DELEGATED CO-COMMISSIONING,DUKE MEDICAL CENTRE,27406993,800.00 
Department of Health,NHS Sheffield CCG,31/05/2019,C&M-GMS Global Sum,PRC DELEGATED CO-COMMISSIONING,DUKE MEDICAL CENTRE,27406993,"58,458.34 "
Department of Health,NHS Sheffield CCG,31/05/2019,C&M-GMS MPIG Correction Factor,PRC DELEGATED CO-COMMISSIONING,DUKE MEDICAL CENTRE,27406993,306.25 
Department of Health,NHS Sheffield CCG,31/05/2019,C&M-GMS PCO Other,PRC DELEGATED CO-COMMISSIONING,DUKE MEDICAL CENTRE,27406993,916.60 
Department of Health,NHS Sheffield CCG,31/05/2019,C&M-GMS Prem Notional Rent,PRC DELEGATED CO-COMMISSIONING,DUKE MEDICAL CENTRE,27406993,"5,721.67 "
Department of Health,NHS Sheffield CCG,31/05/2019,C&M-GMS Prof Fees Prescribing,PRC DELEGATED CO-COMMISSIONING,DUKE MEDICAL CENTRE,27406993,215.88 
Department of Health,NHS Sheffield CCG,31/05/2019,C&M-GMS QOF Aspiration,PRC DELEGATED CO-COMMISSIONING,DUKE MEDICAL CENTRE,27406993,"5,166.69 "
Department of Health,NHS Sheffield CCG,31/05/2019,C&M-PMS Contract Value,PRC DELEGATED CO-COMMISSIONING,DUNNINC ROAD SURGERY,27182445,"23,578.92 "
Department of Health,NHS Sheffield CCG,31/05/2019,C&M-PMS DES Minor Surgery,PRC DELEGATED CO-COMMISSIONING,DUNNINC ROAD SURGERY,27182445,"2,665.00 "
Department of Health,NHS Sheffield CCG,31/05/2019,C&M-PMS Prem Notional Rent,PRC DELEGATED CO-COMMISSIONING,DUNNINC ROAD SURGERY,27182445,"1,664.58 "
Department of Health,NHS Sheffield CCG,31/05/2019,C&M-PMS QOF Aspiration,PRC DELEGATED CO-COMMISSIONING,DUNNINC ROAD SURGERY,27182445,"2,054.91 "
Department of Health,NHS Sheffield CCG,31/05/2019,C&M-PMS Contract Value,PRC DELEGATED CO-COMMISSIONING,DYKES HALL MEDICAL CENTRE,27182447,"72,631.25 "
Department of Health,NHS Sheffield CCG,31/05/2019,C&M-PMS DES Minor Surgery,PRC DELEGATED CO-COMMISSIONING,DYKES HALL MEDICAL CENTRE,27182447,920.00 
Department of Health,NHS Sheffield CCG,31/05/2019,C&M-PMS Out of Hours Opt Outs,PRC DELEGATED CO-COMMISSIONING,DYKES HALL MEDICAL CENTRE,27182447,42.12 
Department of Health,NHS Sheffield CCG,31/05/2019,C&M-PMS Prem Notional Rent,PRC DELEGATED CO-COMMISSIONING,DYKES HALL MEDICAL CENTRE,27182447,"5,377.08 "
Department of Health,NHS Sheffield CCG,31/05/2019,C&M-PMS QOF Aspiration,PRC DELEGATED CO-COMMISSIONING,DYKES HALL MEDICAL CENTRE,27182447,"8,323.49 "
Department of Health,NHS Sheffield CCG,31/05/2019,C&M-PMS Contract Value,PRC DELEGATED CO-COMMISSIONING,EAST BANK MEDICAL CENTRE,27182449,"48,931.61 "
Department of Health,NHS Sheffield CCG,31/05/2019,C&M-PMS DES Minor Surgery,PRC DELEGATED CO-COMMISSIONING,EAST BANK MEDICAL CENTRE,27182449,840.00 
Department of Health,NHS Sheffield CCG,31/05/2019,C&M-PMS Prem Notional Rent,PRC DELEGATED CO-COMMISSIONING,EAST BANK MEDICAL CENTRE,27182449,"10,583.33 "
Department of Health,NHS Sheffield CCG,31/05/2019,C&M-PMS Prem Rates,PRC DELEGATED CO-COMMISSIONING,EAST BANK MEDICAL CENTRE,27182449,"5,796.00 "
Department of Health,NHS Sheffield CCG,31/05/2019,C&M-PMS Prem Water Rates,PRC DELEGATED CO-COMMISSIONING,EAST BANK MEDICAL CENTRE,27182449,"1,106.09 "
Department of Health,NHS Sheffield CCG,31/05/2019,C&M-PMS QOF Aspiration,PRC DELEGATED CO-COMMISSIONING,EAST BANK MEDICAL CENTRE,27182449,"5,026.31 "
Department of Health,NHS Sheffield CCG,31/05/2019,C&M-GMS Cost of Drugs -Prescribing,LOCAL ENHANCED SERVICES,ECCLESFIELD GROUP PRACTICE,27406989,"1,144.43 "
Department of Health,NHS Sheffield CCG,31/05/2019,C&M-GMS DES Learn Dsblty Hlth Chk,PRC DELEGATED CO-COMMISSIONING,ECCLESFIELD GROUP PRACTICE,27406989,280.00 
Department of Health,NHS Sheffield CCG,31/05/2019,C&M-GMS DES Minor Surgery,PRC DELEGATED CO-COMMISSIONING,ECCLESFIELD GROUP PRACTICE,27406989,640.00 
Department of Health,NHS Sheffield CCG,31/05/2019,C&M-GMS Global Sum,PRC DELEGATED CO-COMMISSIONING,ECCLESFIELD GROUP PRACTICE,27406989,"68,343.79 "
Department of Health,NHS Sheffield CCG,31/05/2019,C&M-GMS PCO Other,PRC DELEGATED CO-COMMISSIONING,ECCLESFIELD GROUP PRACTICE,27406989,"1,050.60 "
Department of Health,NHS Sheffield CCG,31/05/2019,C&M-GMS Prem Notional Rent,PRC DELEGATED CO-COMMISSIONING,ECCLESFIELD GROUP PRACTICE,27406989,"6,805.42 "
Department of Health,NHS Sheffield CCG,31/05/2019,C&M-GMS Prem Rates,PRC DELEGATED CO-COMMISSIONING,ECCLESFIELD GROUP PRACTICE,27406989,"2,002.89 "
Department of Health,NHS Sheffield CCG,31/05/2019,C&M-GMS Prem Water Rates,PRC DELEGATED CO-COMMISSIONING,ECCLESFIELD GROUP PRACTICE,27406989,"1,281.15 "
Department of Health,NHS Sheffield CCG,31/05/2019,C&M-GMS Prof Fees Prescribing,PRC DELEGATED CO-COMMISSIONING,ECCLESFIELD GROUP PRACTICE,27406989,285.27 
Department of Health,NHS Sheffield CCG,31/05/2019,C&M-GMS QOF Aspiration,PRC DELEGATED CO-COMMISSIONING,ECCLESFIELD GROUP PRACTICE,27406989,"9,179.49 "
Department of Health,NHS Sheffield CCG,31/05/2019,C&M-GMS Cost of Drugs -Prescribing,LOCAL ENHANCED SERVICES,ELM LANE SURGERY,27406991,"1,230.32 "
Department of Health,NHS Sheffield CCG,31/05/2019,C&M-GMS DES Minor Surgery,PRC DELEGATED CO-COMMISSIONING,ELM LANE SURGERY,27406991,80.00 
Department of Health,NHS Sheffield CCG,31/05/2019,C&M-GMS Global Sum,PRC DELEGATED CO-COMMISSIONING,ELM LANE SURGERY,27406991,"40,484.03 "
Department of Health,NHS Sheffield CCG,31/05/2019,C&M-GMS MPIG Correction Factor,PRC DELEGATED CO-COMMISSIONING,ELM LANE SURGERY,27406991,419.26 
Department of Health,NHS Sheffield CCG,31/05/2019,C&M-GMS Prem Notional Rent,PRC DELEGATED CO-COMMISSIONING,ELM LANE SURGERY,27406991,"5,305.50 "
Department of Health,NHS Sheffield CCG,31/05/2019,C&M-GMS Prof Fees Prescribing,PRC DELEGATED CO-COMMISSIONING,ELM LANE SURGERY,27406991,164.48 
Department of Health,NHS Sheffield CCG,31/05/2019,C&M-GMS QOF Aspiration,PRC DELEGATED CO-COMMISSIONING,ELM LANE SURGERY,27406991,"4,720.25 "
Department of Health,NHS Sheffield CCG,31/05/2019,Cont Care-Physical Disab (<65),CHC ADULT FULLY FUNDED,FAIRWINDS HEALTH CARE LTD,27276861,"39,203.66 "
Department of Health,NHS Sheffield CCG,31/05/2019,C&M-PMS Contract Value,PRC DELEGATED CO-COMMISSIONING,FALKLAND HOUSE,27182453,"25,959.32 "
Department of Health,NHS Sheffield CCG,31/05/2019,C&M-PMS DES Minor Surgery,PRC DELEGATED CO-COMMISSIONING,FALKLAND HOUSE,27182453,840.00 
Department of Health,NHS Sheffield CCG,31/05/2019,C&M-PMS PCO Other,PRC DELEGATED CO-COMMISSIONING,FALKLAND HOUSE,27182453,552.80 
Department of Health,NHS Sheffield CCG,31/05/2019,C&M-PMS Prem Notional Rent,PRC DELEGATED CO-COMMISSIONING,FALKLAND HOUSE,27182453,"1,866.67 "
Department of Health,NHS Sheffield CCG,31/05/2019,C&M-PMS Prem Rates,PRC DELEGATED CO-COMMISSIONING,FALKLAND HOUSE,27182453,773.00 
Department of Health,NHS Sheffield CCG,31/05/2019,C&M-PMS Prem Water Rates,PRC DELEGATED CO-COMMISSIONING,FALKLAND HOUSE,27182453,72.87 
Department of Health,NHS Sheffield CCG,31/05/2019,C&M-PMS QOF Aspiration,PRC DELEGATED CO-COMMISSIONING,FALKLAND HOUSE,27182453,"2,925.24 "
Department of Health,NHS Sheffield CCG,31/05/2019,C&M-GMS Cost of Drugs -Prescribing,LOCAL ENHANCED SERVICES,FAR LANE MEDICAL CENTRE,27407000,464.70 
Department of Health,NHS Sheffield CCG,31/05/2019,C&M-GMS DES Learn Dsblty Hlth Chk,PRC DELEGATED CO-COMMISSIONING,FAR LANE MEDICAL CENTRE,27407000,980.00 
Department of Health,NHS Sheffield CCG,31/05/2019,C&M-GMS DES Minor Surgery,PRC DELEGATED CO-COMMISSIONING,FAR LANE MEDICAL CENTRE,27407000,"4,285.00 "
Department of Health,NHS Sheffield CCG,31/05/2019,C&M-GMS Global Sum,PRC DELEGATED CO-COMMISSIONING,FAR LANE MEDICAL CENTRE,27407000,"55,471.86 "
Department of Health,NHS Sheffield CCG,31/05/2019,C&M-GMS Prem Notional Rent,PRC DELEGATED CO-COMMISSIONING,FAR LANE MEDICAL CENTRE,27407000,"3,462.50 "
Department of Health,NHS Sheffield CCG,31/05/2019,C&M-GMS Prem Rates,PRC DELEGATED CO-COMMISSIONING,FAR LANE MEDICAL CENTRE,27407000,"1,184.00 "
Department of Health,NHS Sheffield CCG,31/05/2019,C&M-GMS Prem Water Rates,PRC DELEGATED CO-COMMISSIONING,FAR LANE MEDICAL CENTRE,27407000,128.07 
Department of Health,NHS Sheffield CCG,31/05/2019,C&M-GMS Prof Fees Prescribing,PRC DELEGATED CO-COMMISSIONING,FAR LANE MEDICAL CENTRE,27407000,174.76 
Department of Health,NHS Sheffield CCG,31/05/2019,C&M-GMS QOF Aspiration,PRC DELEGATED CO-COMMISSIONING,FAR LANE MEDICAL CENTRE,27407000,"5,719.80 "
Department of Health,NHS Sheffield CCG,31/05/2019,C&M-PMS Contract Value,PRC DELEGATED CO-COMMISSIONING,FIRTH PARK SURGERY,27182451,"74,582.06 "
Department of Health,NHS Sheffield CCG,31/05/2019,C&M-PMS DES Learn Dsblty Hlth Chk,PRC DELEGATED CO-COMMISSIONING,FIRTH PARK SURGERY,27182451,"1,820.00 "
Department of Health,NHS Sheffield CCG,31/05/2019,C&M-PMS DES Minor Surgery,PRC DELEGATED CO-COMMISSIONING,FIRTH PARK SURGERY,27182451,"1,210.00 "
Department of Health,NHS Sheffield CCG,31/05/2019,C&M-PMS PCO Other,PRC DELEGATED CO-COMMISSIONING,FIRTH PARK SURGERY,27182451,"6,238.00 "
Department of Health,NHS Sheffield CCG,31/05/2019,C&M-PMS Prem Notional Rent,PRC DELEGATED CO-COMMISSIONING,FIRTH PARK SURGERY,27182451,"4,500.00 "
Department of Health,NHS Sheffield CCG,31/05/2019,C&M-PMS Prem Rates,PRC DELEGATED CO-COMMISSIONING,FIRTH PARK SURGERY,27182451,"1,360.00 "
Department of Health,NHS Sheffield CCG,31/05/2019,C&M-PMS Prem Water Rates,PRC DELEGATED CO-COMMISSIONING,FIRTH PARK SURGERY,27182451,283.02 
Department of Health,NHS Sheffield CCG,31/05/2019,C&M-PMS QOF Aspiration,PRC DELEGATED CO-COMMISSIONING,FIRTH PARK SURGERY,27182451,"7,493.92 "
Department of Health,NHS Sheffield CCG,31/05/2019,C&M-PMS Contract Value,PRC DELEGATED CO-COMMISSIONING,FORGE HEALTH GROUP,27182499,"115,434.08 "
Department of Health,NHS Sheffield CCG,31/05/2019,C&M-PMS DES Minor Surgery,PRC DELEGATED CO-COMMISSIONING,FORGE HEALTH GROUP,27182499,"2,070.00 "
Department of Health,NHS Sheffield CCG,31/05/2019,C&M-PMS Out of Hours Opt Outs,PRC DELEGATED CO-COMMISSIONING,FORGE HEALTH GROUP,27182499,20.30 
Department of Health,NHS Sheffield CCG,31/05/2019,C&M-PMS Prem Healthcentre Rent,PRC DELEGATED CO-COMMISSIONING,FORGE HEALTH GROUP,27182499,"32,135.79 "
Department of Health,NHS Sheffield CCG,31/05/2019,C&M-PMS Prem Notional Rent,PRC DELEGATED CO-COMMISSIONING,FORGE HEALTH GROUP,27182499,"9,650.00 "
Department of Health,NHS Sheffield CCG,31/05/2019,C&M-PMS Prem Rates,PRC DELEGATED CO-COMMISSIONING,FORGE HEALTH GROUP,27182499,"1,990.00 "
Department of Health,NHS Sheffield CCG,31/05/2019,C&M-PMS QOF Aspiration,PRC DELEGATED CO-COMMISSIONING,FORGE HEALTH GROUP,27182499,"6,964.24 "
Department of Health,NHS Sheffield CCG,31/05/2019,Cont Care-Physical Disab (<65),CHC ADULT FULLY FUNDED,FOUR SEASONS HEALTH CARE LTD,27276878,"33,460.21 "
Department of Health,NHS Sheffield CCG,31/05/2019,C&M-PMS Contract Value,PRC DELEGATED CO-COMMISSIONING,FOXHILL MEDICAL CENTRE SHEFFIELD,27182497,"51,703.44 "
Department of Health,NHS Sheffield CCG,31/05/2019,C&M-PMS DES Learn Dsblty Hlth Chk,PRC DELEGATED CO-COMMISSIONING,FOXHILL MEDICAL CENTRE SHEFFIELD,27182497,"1,680.00 "
Department of Health,NHS Sheffield CCG,31/05/2019,C&M-PMS DES Minor Surgery,PRC DELEGATED CO-COMMISSIONING,FOXHILL MEDICAL CENTRE SHEFFIELD,27182497,160.00 
Department of Health,NHS Sheffield CCG,31/05/2019,C&M-PMS Prem Healthcentre Rent,PRC DELEGATED CO-COMMISSIONING,FOXHILL MEDICAL CENTRE SHEFFIELD,27182497,"46,751.17 "
Department of Health,NHS Sheffield CCG,31/05/2019,C&M-PMS QOF Aspiration,PRC DELEGATED CO-COMMISSIONING,FOXHILL MEDICAL CENTRE SHEFFIELD,27182497,"5,618.87 "
Department of Health,NHS Sheffield CCG,31/05/2019,NHS Recbles <1Yr- CHC Risk Pool Con,CHC ADULT FULLY FUNDED,CHC RETRO,27378343,"67,410.20 "
Department of Health,NHS Sheffield CCG,31/05/2019,C&M-PMS Contract Value,PRC DELEGATED CO-COMMISSIONING,GLEADLESS MEDICAL CENTRE,27182455,"68,807.21 "
Department of Health,NHS Sheffield CCG,31/05/2019,C&M-PMS DES Minor Surgery,PRC DELEGATED CO-COMMISSIONING,GLEADLESS MEDICAL CENTRE,27182455,120.00 
Department of Health,NHS Sheffield CCG,31/05/2019,C&M-PMS PCO Other,PRC DELEGATED CO-COMMISSIONING,GLEADLESS MEDICAL CENTRE,27182455,"1,102.80 "
Department of Health,NHS Sheffield CCG,31/05/2019,C&M-PMS Prem Notional Rent,PRC DELEGATED CO-COMMISSIONING,GLEADLESS MEDICAL CENTRE,27182455,"6,750.00 "
Department of Health,NHS Sheffield CCG,31/05/2019,C&M-PMS Prem Rates,PRC DELEGATED CO-COMMISSIONING,GLEADLESS MEDICAL CENTRE,27182455,"1,657.00 "
Department of Health,NHS Sheffield CCG,31/05/2019,C&M-PMS QOF Aspiration,PRC DELEGATED CO-COMMISSIONING,GLEADLESS MEDICAL CENTRE,27182455,"7,710.90 "
Department of Health,NHS Sheffield CCG,31/05/2019,C&M-GMS Cost of Drugs -Prescribing,LOCAL ENHANCED SERVICES,GRENOSIDE SURGERY,27407006,"1,727.11 "
Department of Health,NHS Sheffield CCG,31/05/2019,C&M-GMS DES Minor Surgery,PRC DELEGATED CO-COMMISSIONING,GRENOSIDE SURGERY,27407006,375.00 
Department of Health,NHS Sheffield CCG,31/05/2019,C&M-GMS Global Sum,PRC DELEGATED CO-COMMISSIONING,GRENOSIDE SURGERY,27407006,"58,075.70 "
Department of Health,NHS Sheffield CCG,31/05/2019,C&M-GMS PCO Other,PRC DELEGATED CO-COMMISSIONING,GRENOSIDE SURGERY,27407006,951.00 
Department of Health,NHS Sheffield CCG,31/05/2019,C&M-GMS Prem Notional Rent,PRC DELEGATED CO-COMMISSIONING,GRENOSIDE SURGERY,27407006,"8,110.42 "
Department of Health,NHS Sheffield CCG,31/05/2019,C&M-GMS Prem Rates,PRC DELEGATED CO-COMMISSIONING,GRENOSIDE SURGERY,27407006,"2,075.00 "
Department of Health,NHS Sheffield CCG,31/05/2019,C&M-GMS Prem Water Rates,PRC DELEGATED CO-COMMISSIONING,GRENOSIDE SURGERY,27407006,121.21 
Department of Health,NHS Sheffield CCG,31/05/2019,C&M-GMS Prof Fees Prescribing,PRC DELEGATED CO-COMMISSIONING,GRENOSIDE SURGERY,27407006,174.76 
Department of Health,NHS Sheffield CCG,31/05/2019,C&M-GMS QOF Aspiration,PRC DELEGATED CO-COMMISSIONING,GRENOSIDE SURGERY,27407006,"5,686.85 "
Department of Health,NHS Sheffield CCG,31/05/2019,C&M-GMS Cost of Drugs -Prescribing,LOCAL ENHANCED SERVICES,GREYSTONES MEDICAL CENTRE,27407008,282.08 
Department of Health,NHS Sheffield CCG,31/05/2019,C&M-GMS DES Minor Surgery,PRC DELEGATED CO-COMMISSIONING,GREYSTONES MEDICAL CENTRE,27407008,245.00 
Department of Health,NHS Sheffield CCG,31/05/2019,C&M-GMS Global Sum,PRC DELEGATED CO-COMMISSIONING,GREYSTONES MEDICAL CENTRE,27407008,"19,644.01 "
Department of Health,NHS Sheffield CCG,31/05/2019,C&M-GMS MPIG Correction Factor,PRC DELEGATED CO-COMMISSIONING,GREYSTONES MEDICAL CENTRE,27407008,552.23 
Department of Health,NHS Sheffield CCG,31/05/2019,C&M-GMS PCO Other,PRC DELEGATED CO-COMMISSIONING,GREYSTONES MEDICAL CENTRE,27407008,526.20 
Department of Health,NHS Sheffield CCG,31/05/2019,C&M-GMS Prem Notional Rent,PRC DELEGATED CO-COMMISSIONING,GREYSTONES MEDICAL CENTRE,27407008,"2,885.42 "
Department of Health,NHS Sheffield CCG,31/05/2019,C&M-GMS Prem Rates,PRC DELEGATED CO-COMMISSIONING,GREYSTONES MEDICAL CENTRE,27407008,606.00 
Department of Health,NHS Sheffield CCG,31/05/2019,C&M-GMS Prof Fees Prescribing,PRC DELEGATED CO-COMMISSIONING,GREYSTONES MEDICAL CENTRE,27407008,66.82 
Department of Health,NHS Sheffield CCG,31/05/2019,C&M-GMS QOF Aspiration,PRC DELEGATED CO-COMMISSIONING,GREYSTONES MEDICAL CENTRE,27407008,"2,314.72 "
Department of Health,NHS Sheffield CCG,31/05/2019,C&M-PMS Contract Value,PRC DELEGATED CO-COMMISSIONING,HACKENTHORPE MEDICAL CENTRE,27182457,"48,712.69 "
Department of Health,NHS Sheffield CCG,31/05/2019,C&M-PMS DES Learn Dsblty Hlth Chk,PRC DELEGATED CO-COMMISSIONING,HACKENTHORPE MEDICAL CENTRE,27182457,840.00 
Department of Health,NHS Sheffield CCG,31/05/2019,C&M-PMS DES Minor Surgery,PRC DELEGATED CO-COMMISSIONING,HACKENTHORPE MEDICAL CENTRE,27182457,840.00 
Department of Health,NHS Sheffield CCG,31/05/2019,C&M-PMS PCO Other,PRC DELEGATED CO-COMMISSIONING,HACKENTHORPE MEDICAL CENTRE,27182457,870.40 
Department of Health,NHS Sheffield CCG,31/05/2019,C&M-PMS Prem Notional Rent,PRC DELEGATED CO-COMMISSIONING,HACKENTHORPE MEDICAL CENTRE,27182457,"5,116.67 "
Department of Health,NHS Sheffield CCG,31/05/2019,C&M-PMS Prem Rates,PRC DELEGATED CO-COMMISSIONING,HACKENTHORPE MEDICAL CENTRE,27182457,"1,363.00 "
Department of Health,NHS Sheffield CCG,31/05/2019,C&M-PMS QOF Aspiration,PRC DELEGATED CO-COMMISSIONING,HACKENTHORPE MEDICAL CENTRE,27182457,"6,528.39 "
Department of Health,NHS Sheffield CCG,31/05/2019,C&M-GMS Cost of Drugs -Prescribing,LOCAL ENHANCED SERVICES,HANDSWORTH MEDICAL PRACTICE SHEFFIELD,27407004,715.22 
Department of Health,NHS Sheffield CCG,31/05/2019,C&M-GMS DES Minor Surgery,PRC DELEGATED CO-COMMISSIONING,HANDSWORTH MEDICAL PRACTICE SHEFFIELD,27407004,480.00 
Department of Health,NHS Sheffield CCG,31/05/2019,C&M-GMS Global Sum,PRC DELEGATED CO-COMMISSIONING,HANDSWORTH MEDICAL PRACTICE SHEFFIELD,27407004,"77,020.45 "
Department of Health,NHS Sheffield CCG,31/05/2019,C&M-GMS Prem Notional Rent,PRC DELEGATED CO-COMMISSIONING,HANDSWORTH MEDICAL PRACTICE SHEFFIELD,27407004,"3,321.66 "
Department of Health,NHS Sheffield CCG,31/05/2019,C&M-GMS Prem Rates,PRC DELEGATED CO-COMMISSIONING,HANDSWORTH MEDICAL PRACTICE SHEFFIELD,27407004,"2,558.55 "
Department of Health,NHS Sheffield CCG,31/05/2019,C&M-GMS Prem Water Rates,PRC DELEGATED CO-COMMISSIONING,HANDSWORTH MEDICAL PRACTICE SHEFFIELD,27407004,186.99 
Department of Health,NHS Sheffield CCG,31/05/2019,C&M-GMS Prof Fees Prescribing,PRC DELEGATED CO-COMMISSIONING,HANDSWORTH MEDICAL PRACTICE SHEFFIELD,27407004,208.17 
Department of Health,NHS Sheffield CCG,31/05/2019,C&M-GMS QOF Aspiration,PRC DELEGATED CO-COMMISSIONING,HANDSWORTH MEDICAL PRACTICE SHEFFIELD,27407004,"7,811.29 "
Department of Health,NHS Sheffield CCG,31/05/2019,C&M-GMS Cost of Drugs -Prescribing,LOCAL ENHANCED SERVICES,HEALTH CARE SURGERY,27407014,537.68 
Department of Health,NHS Sheffield CCG,31/05/2019,C&M-GMS DES Minor Surgery,PRC DELEGATED CO-COMMISSIONING,HEALTH CARE SURGERY,27407014,200.00 
Department of Health,NHS Sheffield CCG,31/05/2019,C&M-GMS Global Sum,PRC DELEGATED CO-COMMISSIONING,HEALTH CARE SURGERY,27407014,"38,313.93 "
Department of Health,NHS Sheffield CCG,31/05/2019,C&M-GMS MPIG Correction Factor,PRC DELEGATED CO-COMMISSIONING,HEALTH CARE SURGERY,27407014,390.01 
Department of Health,NHS Sheffield CCG,31/05/2019,C&M-GMS Prem Notional Rent,PRC DELEGATED CO-COMMISSIONING,HEALTH CARE SURGERY,27407014,"3,862.50 "
Department of Health,NHS Sheffield CCG,31/05/2019,C&M-GMS Prem Rates,PRC DELEGATED CO-COMMISSIONING,HEALTH CARE SURGERY,27407014,645.88 
Department of Health,NHS Sheffield CCG,31/05/2019,C&M-GMS Prof Fees Prescribing,PRC DELEGATED CO-COMMISSIONING,HEALTH CARE SURGERY,27407014,138.78 
Department of Health,NHS Sheffield CCG,31/05/2019,C&M-GMS QOF Aspiration,PRC DELEGATED CO-COMMISSIONING,HEALTH CARE SURGERY,27407014,"4,056.36 "
Department of Health,NHS Sheffield CCG,31/05/2019,C&M-GMS Cost of Drugs -Prescribing,LOCAL ENHANCED SERVICES,HEELEY GREEN SURGERY,27407010,975.67 
Department of Health,NHS Sheffield CCG,31/05/2019,C&M-GMS DES Learn Dsblty Hlth Chk,PRC DELEGATED CO-COMMISSIONING,HEELEY GREEN SURGERY,27407010,"1,120.00 "
Department of Health,NHS Sheffield CCG,31/05/2019,C&M-GMS Global Sum,PRC DELEGATED CO-COMMISSIONING,HEELEY GREEN SURGERY,27407010,"42,507.17 "
Department of Health,NHS Sheffield CCG,31/05/2019,C&M-GMS MPIG Correction Factor,PRC DELEGATED CO-COMMISSIONING,HEELEY GREEN SURGERY,27407010,188.10 
Department of Health,NHS Sheffield CCG,31/05/2019,C&M-GMS Prem Notional Rent,PRC DELEGATED CO-COMMISSIONING,HEELEY GREEN SURGERY,27407010,"3,254.17 "
Department of Health,NHS Sheffield CCG,31/05/2019,C&M-GMS Prof Fees Prescribing,PRC DELEGATED CO-COMMISSIONING,HEELEY GREEN SURGERY,27407010,182.47 
Department of Health,NHS Sheffield CCG,31/05/2019,C&M-GMS QOF Aspiration,PRC DELEGATED CO-COMMISSIONING,HEELEY GREEN SURGERY,27407010,"4,709.02 "
Department of Health,NHS Sheffield CCG,31/05/2019,C&M-GMS Cost of Drugs -Prescribing,LOCAL ENHANCED SERVICES,HOLLIES MEDICAL CENTRE,27407012,795.66 
Department of Health,NHS Sheffield CCG,31/05/2019,C&M-GMS DES Minor Surgery,PRC DELEGATED CO-COMMISSIONING,HOLLIES MEDICAL CENTRE,27407012,"1,140.00 "
Department of Health,NHS Sheffield CCG,31/05/2019,C&M-GMS Global Sum,PRC DELEGATED CO-COMMISSIONING,HOLLIES MEDICAL CENTRE,27407012,"60,207.92 "
Department of Health,NHS Sheffield CCG,31/05/2019,C&M-GMS MPIG Correction Factor,PRC DELEGATED CO-COMMISSIONING,HOLLIES MEDICAL CENTRE,27407012,726.36 
Department of Health,NHS Sheffield CCG,31/05/2019,C&M-GMS Prem Notional Rent,PRC DELEGATED CO-COMMISSIONING,HOLLIES MEDICAL CENTRE,27407012,"3,229.17 "
Department of Health,NHS Sheffield CCG,31/05/2019,C&M-GMS Prof Fees Prescribing,PRC DELEGATED CO-COMMISSIONING,HOLLIES MEDICAL CENTRE,27407012,120.79 
Department of Health,NHS Sheffield CCG,31/05/2019,C&M-GMS QOF Aspiration,PRC DELEGATED CO-COMMISSIONING,HOLLIES MEDICAL CENTRE,27407012,"6,991.81 "
Department of Health,NHS Sheffield CCG,31/05/2019,Cont Care-Physical Disab (<65),CHC ADULT FULLY FUNDED,HORIZON CARE HOMES LTD,27253719,"49,204.98 "
Department of Health,NHS Sheffield CCG,31/05/2019,Cont Care-Physical Disab (<65),CHC ADULT FULLY FUNDED,HORIZON CARE HOMES LTD,27277109,"28,003.98 "
Department of Health,NHS Sheffield CCG,31/05/2019,Cont Care-Physical Disab (65+),CHC ADULT FULLY FUNDED,HORIZON CARE HOMES LTD,27487787,"53,142.85 "
Department of Health,NHS Sheffield CCG,31/05/2019,C&M-PMS Contract Value,PRC DELEGATED CO-COMMISSIONING,JAUNTY SPRINGS HEALTH CENTRE,27182459,"30,997.48 "
Department of Health,NHS Sheffield CCG,31/05/2019,C&M-PMS DES Learn Dsblty Hlth Chk,PRC DELEGATED CO-COMMISSIONING,JAUNTY SPRINGS HEALTH CENTRE,27182459,420.00 
Department of Health,NHS Sheffield CCG,31/05/2019,C&M-PMS DES Minor Surgery,PRC DELEGATED CO-COMMISSIONING,JAUNTY SPRINGS HEALTH CENTRE,27182459,160.00 
Department of Health,NHS Sheffield CCG,31/05/2019,C&M-PMS PCO Other,PRC DELEGATED CO-COMMISSIONING,JAUNTY SPRINGS HEALTH CENTRE,27182459,527.20 
Department of Health,NHS Sheffield CCG,31/05/2019,C&M-PMS Prem Notional Rent,PRC DELEGATED CO-COMMISSIONING,JAUNTY SPRINGS HEALTH CENTRE,27182459,"3,208.33 "
Department of Health,NHS Sheffield CCG,31/05/2019,C&M-PMS Prem Rates,PRC DELEGATED CO-COMMISSIONING,JAUNTY SPRINGS HEALTH CENTRE,27182459,710.00 
Department of Health,NHS Sheffield CCG,31/05/2019,C&M-PMS QOF Aspiration,PRC DELEGATED CO-COMMISSIONING,JAUNTY SPRINGS HEALTH CENTRE,27182459,"4,020.11 "
Department of Health,NHS Sheffield CCG,31/05/2019,C&M-GMS IT Comm Servs -GP Practices,PRIMARY CARE IT,KIER BUSINESS SERVICES LTD,27253620,"100,142.40 "
Department of Health,NHS Sheffield CCG,31/05/2019,FM Computer Contracts,BUSINESS INFORMATICS,KIER BUSINESS SERVICES LTD,27253620,"36,193.20 "
Department of Health,NHS Sheffield CCG,31/05/2019,C&M-GMS LES Translation Fees,INTERPRETING SERVICES,LANGUAGELINE SOLUTIONS,27304974,"44,527.56 "
Department of Health,NHS Sheffield CCG,31/05/2019,C&M-GMS LES Translation Fees,INTERPRETING SERVICES,LANGUAGELINE SOLUTIONS,27304982,"28,070.40 "
Department of Health,NHS Sheffield CCG,31/05/2019,Hcare Srv Rec NHS Trust-Contract Baseline,ACUTE COMMISSIONING,LEEDS TEACHING HOSPITALS NHS TRUST,27083045,"57,500.00 "
Department of Health,NHS Sheffield CCG,31/05/2019,Cont Care-Physical Disab (<65),CHC ADULT FULLY FUNDED,LONGLEY HEALTH CARE LTD,27253722,"97,041.14 "
Department of Health,NHS Sheffield CCG,31/05/2019,Cont Care-Physical Disab (<65),CHC ADULT FULLY FUNDED,LOXLEY HEALTH CARE LTD,27253721,"56,956.69 "
Department of Health,NHS Sheffield CCG,31/05/2019,C&M-PMS Contract Value,PRC DELEGATED CO-COMMISSIONING,MANCHESTER ROAD SURGERY SHEFFIELD,27182463,"32,797.54 "
Department of Health,NHS Sheffield CCG,31/05/2019,C&M-PMS DES Learn Dsblty Hlth Chk,PRC DELEGATED CO-COMMISSIONING,MANCHESTER ROAD SURGERY SHEFFIELD,27182463,"1,400.00 "
Department of Health,NHS Sheffield CCG,31/05/2019,C&M-PMS DES Minor Surgery,PRC DELEGATED CO-COMMISSIONING,MANCHESTER ROAD SURGERY SHEFFIELD,27182463,840.00 
Department of Health,NHS Sheffield CCG,31/05/2019,C&M-PMS Prem Cost Rent,PRC DELEGATED CO-COMMISSIONING,MANCHESTER ROAD SURGERY SHEFFIELD,27182463,"3,472.17 "
Department of Health,NHS Sheffield CCG,31/05/2019,C&M-PMS Prem Notional Rent,PRC DELEGATED CO-COMMISSIONING,MANCHESTER ROAD SURGERY SHEFFIELD,27182463,442.92 
Department of Health,NHS Sheffield CCG,31/05/2019,C&M-PMS Prem Rates,PRC DELEGATED CO-COMMISSIONING,MANCHESTER ROAD SURGERY SHEFFIELD,27182463,970.00 
Department of Health,NHS Sheffield CCG,31/05/2019,C&M-PMS QOF Aspiration,PRC DELEGATED CO-COMMISSIONING,MANCHESTER ROAD SURGERY SHEFFIELD,27182463,"3,985.36 "
Department of Health,NHS Sheffield CCG,31/05/2019,Hcare Srv Rec Fdtn Trust-Non Contract,NCAS/OATS,MANCHESTER UNIVERSITY NHS FOUNDATION TRUST,27155017,"28,294.50 "
Department of Health,NHS Sheffield CCG,31/05/2019,C&M-PMS Contract Value,PRC DELEGATED CO-COMMISSIONING,MANOR & PARK GROUP PRACTICE,27183821,"72,275.67 "
Department of Health,NHS Sheffield CCG,31/05/2019,C&M-PMS DES Minor Surgery,PRC DELEGATED CO-COMMISSIONING,MANOR & PARK GROUP PRACTICE,27183821,40.00 
Department of Health,NHS Sheffield CCG,31/05/2019,C&M-PMS Out of Hours Opt Outs,PRC DELEGATED CO-COMMISSIONING,MANOR & PARK GROUP PRACTICE,27183821,96.28 
Department of Health,NHS Sheffield CCG,31/05/2019,C&M-PMS Prem Notional Rent,PRC DELEGATED CO-COMMISSIONING,MANOR & PARK GROUP PRACTICE,27183821,"9,050.00 "
Department of Health,NHS Sheffield CCG,31/05/2019,C&M-PMS Prem Rates,PRC DELEGATED CO-COMMISSIONING,MANOR & PARK GROUP PRACTICE,27183821,"2,914.25 "
Department of Health,NHS Sheffield CCG,31/05/2019,C&M-PMS QOF Aspiration,PRC DELEGATED CO-COMMISSIONING,MANOR & PARK GROUP PRACTICE,27183821,"7,420.75 "
Department of Health,NHS Sheffield CCG,31/05/2019,C&M-GMS Cost of Drugs -Prescribing,LOCAL ENHANCED SERVICES,MATHEWS PRACTICE,27407021,444.01 
Department of Health,NHS Sheffield CCG,31/05/2019,C&M-GMS DES Minor Surgery,PRC DELEGATED CO-COMMISSIONING,MATHEWS PRACTICE,27407021,"1,765.00 "
Department of Health,NHS Sheffield CCG,31/05/2019,C&M-GMS Global Sum,PRC DELEGATED CO-COMMISSIONING,MATHEWS PRACTICE,27407021,"61,008.69 "
Department of Health,NHS Sheffield CCG,31/05/2019,C&M-GMS MPIG Correction Factor,PRC DELEGATED CO-COMMISSIONING,MATHEWS PRACTICE,27407021,299.48 
Department of Health,NHS Sheffield CCG,31/05/2019,C&M-GMS PCO Other,PRC DELEGATED CO-COMMISSIONING,MATHEWS PRACTICE,27407021,"5,241.00 "
Department of Health,NHS Sheffield CCG,31/05/2019,C&M-GMS Prem Notional Rent,PRC DELEGATED CO-COMMISSIONING,MATHEWS PRACTICE,27407021,"8,660.42 "
Department of Health,NHS Sheffield CCG,31/05/2019,C&M-GMS Prem Rates,PRC DELEGATED CO-COMMISSIONING,MATHEWS PRACTICE,27407021,"2,944.75 "
Department of Health,NHS Sheffield CCG,31/05/2019,C&M-GMS Prof Fees Prescribing,PRC DELEGATED CO-COMMISSIONING,MATHEWS PRACTICE,27407021,177.33 
Department of Health,NHS Sheffield CCG,31/05/2019,C&M-GMS QOF Aspiration,PRC DELEGATED CO-COMMISSIONING,MATHEWS PRACTICE,27407021,"7,156.84 "
Department of Health,NHS Sheffield CCG,31/05/2019,C&M-PMS Contract Value,PRC DELEGATED CO-COMMISSIONING,MEADOWHEAD GROUP PRACTICE,27182461,"73,642.83 "
Department of Health,NHS Sheffield CCG,31/05/2019,C&M-PMS DES Learn Dsblty Hlth Chk,PRC DELEGATED CO-COMMISSIONING,MEADOWHEAD GROUP PRACTICE,27182461,"2,240.00 "
Department of Health,NHS Sheffield CCG,31/05/2019,C&M-PMS DES Minor Surgery,PRC DELEGATED CO-COMMISSIONING,MEADOWHEAD GROUP PRACTICE,27182461,"1,270.00 "
Department of Health,NHS Sheffield CCG,31/05/2019,C&M-PMS Out of Hours Opt Outs,PRC DELEGATED CO-COMMISSIONING,MEADOWHEAD GROUP PRACTICE,27182461,40.70 
Department of Health,NHS Sheffield CCG,31/05/2019,C&M-PMS PCO Locum Adop/Pat/Mat,PRC DELEGATED CO-COMMISSIONING,MEADOWHEAD GROUP PRACTICE,27182461,"12,977.59 "
Department of Health,NHS Sheffield CCG,31/05/2019,C&M-PMS Prem Cost Rent,PRC DELEGATED CO-COMMISSIONING,MEADOWHEAD GROUP PRACTICE,27182461,"3,647.42 "
Department of Health,NHS Sheffield CCG,31/05/2019,C&M-PMS Prem Notional Rent,PRC DELEGATED CO-COMMISSIONING,MEADOWHEAD GROUP PRACTICE,27182461,"3,358.33 "
Department of Health,NHS Sheffield CCG,31/05/2019,C&M-PMS Prem Rates,PRC DELEGATED CO-COMMISSIONING,MEADOWHEAD GROUP PRACTICE,27182461,"1,870.00 "
Department of Health,NHS Sheffield CCG,31/05/2019,C&M-PMS QOF Aspiration,PRC DELEGATED CO-COMMISSIONING,MEADOWHEAD GROUP PRACTICE,27182461,"9,076.52 "
Department of Health,NHS Sheffield CCG,31/05/2019,C&M-GMS Cost of Drugs -Prescribing,LOCAL ENHANCED SERVICES,MEDICAL CENTRE CRYSTAL PEAKS,27407018,"1,314.66 "
Department of Health,NHS Sheffield CCG,31/05/2019,C&M-GMS DES Minor Surgery,PRC DELEGATED CO-COMMISSIONING,MEDICAL CENTRE CRYSTAL PEAKS,27407018,"4,140.00 "
Department of Health,NHS Sheffield CCG,31/05/2019,C&M-GMS Global Sum,PRC DELEGATED CO-COMMISSIONING,MEDICAL CENTRE CRYSTAL PEAKS,27407018,"46,431.70 "
Department of Health,NHS Sheffield CCG,31/05/2019,C&M-GMS MPIG Correction Factor,PRC DELEGATED CO-COMMISSIONING,MEDICAL CENTRE CRYSTAL PEAKS,27407018,565.67 
Department of Health,NHS Sheffield CCG,31/05/2019,C&M-GMS PCO Other,PRC DELEGATED CO-COMMISSIONING,MEDICAL CENTRE CRYSTAL PEAKS,27407018,853.20 
Department of Health,NHS Sheffield CCG,31/05/2019,C&M-GMS Prem Notional Rent,PRC DELEGATED CO-COMMISSIONING,MEDICAL CENTRE CRYSTAL PEAKS,27407018,270.00 
Department of Health,NHS Sheffield CCG,31/05/2019,C&M-GMS Prem Rates,PRC DELEGATED CO-COMMISSIONING,MEDICAL CENTRE CRYSTAL PEAKS,27407018,"1,056.00 "
Department of Health,NHS Sheffield CCG,31/05/2019,C&M-GMS Prof Fees Prescribing,PRC DELEGATED CO-COMMISSIONING,MEDICAL CENTRE CRYSTAL PEAKS,27407018,334.10 
Department of Health,NHS Sheffield CCG,31/05/2019,C&M-GMS QOF Aspiration,PRC DELEGATED CO-COMMISSIONING,MEDICAL CENTRE CRYSTAL PEAKS,27407018,"6,211.79 "
Department of Health,NHS Sheffield CCG,31/05/2019,C&M-GMS Cost of Drugs -Prescribing,LOCAL ENHANCED SERVICES,MILL ROAD SURGERY SHEFFIELD,27407024,"1,138.36 "
Department of Health,NHS Sheffield CCG,31/05/2019,C&M-GMS DES Learn Dsblty Hlth Chk,PRC DELEGATED CO-COMMISSIONING,MILL ROAD SURGERY SHEFFIELD,27407024,560.00 
Department of Health,NHS Sheffield CCG,31/05/2019,C&M-GMS DES Minor Surgery,PRC DELEGATED CO-COMMISSIONING,MILL ROAD SURGERY SHEFFIELD,27407024,"1,640.00 "
Department of Health,NHS Sheffield CCG,31/05/2019,C&M-GMS Global Sum,PRC DELEGATED CO-COMMISSIONING,MILL ROAD SURGERY SHEFFIELD,27407024,"40,905.77 "
Department of Health,NHS Sheffield CCG,31/05/2019,C&M-GMS MPIG Correction Factor,PRC DELEGATED CO-COMMISSIONING,MILL ROAD SURGERY SHEFFIELD,27407024,61.02 
Department of Health,NHS Sheffield CCG,31/05/2019,C&M-GMS PCO Other,PRC DELEGATED CO-COMMISSIONING,MILL ROAD SURGERY SHEFFIELD,27407024,705.40 
Department of Health,NHS Sheffield CCG,31/05/2019,C&M-GMS Prem Notional Rent,PRC DELEGATED CO-COMMISSIONING,MILL ROAD SURGERY SHEFFIELD,27407024,"4,593.33 "
Department of Health,NHS Sheffield CCG,31/05/2019,C&M-GMS Prem Rates,PRC DELEGATED CO-COMMISSIONING,MILL ROAD SURGERY SHEFFIELD,27407024,"2,108.50 "
Department of Health,NHS Sheffield CCG,31/05/2019,C&M-GMS Prof Fees Prescribing,PRC DELEGATED CO-COMMISSIONING,MILL ROAD SURGERY SHEFFIELD,27407024,143.92 
Department of Health,NHS Sheffield CCG,31/05/2019,C&M-GMS QOF Aspiration,PRC DELEGATED CO-COMMISSIONING,MILL ROAD SURGERY SHEFFIELD,27407024,"5,088.50 "
Department of Health,NHS Sheffield CCG,31/05/2019,Clinical&Medical-Independent Sector,Mental Health Services - S117 Mental Health,MOORVILLE RESIDENTIAL,27168031,"8,124.31 "
Department of Health,NHS Sheffield CCG,31/05/2019,Cont Care-Learning Disab(<65),CHC ADULT FULLY FUNDED,MOORVILLE RESIDENTIAL,27168031,"20,005.05 "
Department of Health,NHS Sheffield CCG,31/05/2019,Cont Care-Learning Disab(<65),CHC ADULT JOINT FUNDED,MOORVILLE RESIDENTIAL,27168031,"1,212.72 "
Department of Health,NHS Sheffield CCG,31/05/2019,Cont Care-Mental Health (<65),CHC ADULT JOINT FUNDED,MOORVILLE RESIDENTIAL,27168031,491.57 
Department of Health,NHS Sheffield CCG,31/05/2019,C&M-PMS Contract Value,PRC DELEGATED CO-COMMISSIONING,MOSBOROUGH HEALTH CENTRE,27204010,"49,469.65 "
Department of Health,NHS Sheffield CCG,31/05/2019,C&M-PMS DES Learn Dsblty Hlth Chk,PRC DELEGATED CO-COMMISSIONING,MOSBOROUGH HEALTH CENTRE,27204010,"1,540.00 "
Department of Health,NHS Sheffield CCG,31/05/2019,C&M-PMS DES Minor Surgery,PRC DELEGATED CO-COMMISSIONING,MOSBOROUGH HEALTH CENTRE,27204010,"1,240.00 "
Department of Health,NHS Sheffield CCG,31/05/2019,C&M-PMS PCO Locum Adop/Pat/Mat,PRC DELEGATED CO-COMMISSIONING,MOSBOROUGH HEALTH CENTRE,27204010,"9,856.85 "
Department of Health,NHS Sheffield CCG,31/05/2019,C&M-PMS Prem Notional Rent,PRC DELEGATED CO-COMMISSIONING,MOSBOROUGH HEALTH CENTRE,27204010,"4,091.67 "
Department of Health,NHS Sheffield CCG,31/05/2019,C&M-PMS Prem Rates,PRC DELEGATED CO-COMMISSIONING,MOSBOROUGH HEALTH CENTRE,27204010,"1,105.00 "
Department of Health,NHS Sheffield CCG,31/05/2019,C&M-PMS Prem Water Rates,PRC DELEGATED CO-COMMISSIONING,MOSBOROUGH HEALTH CENTRE,27204010,51.05 
Department of Health,NHS Sheffield CCG,31/05/2019,C&M-PMS QOF Aspiration,PRC DELEGATED CO-COMMISSIONING,MOSBOROUGH HEALTH CENTRE,27204010,"5,736.56 "
Department of Health,NHS Sheffield CCG,31/05/2019,C&M-PMS Contract Value,PRC DELEGATED CO-COMMISSIONING,NETHERGREEN SURGERY,27182466,"63,518.43 "
Department of Health,NHS Sheffield CCG,31/05/2019,C&M-PMS DES Learn Dsblty Hlth Chk,PRC DELEGATED CO-COMMISSIONING,NETHERGREEN SURGERY,27182466,700.00 
Department of Health,NHS Sheffield CCG,31/05/2019,C&M-PMS DES Minor Surgery,PRC DELEGATED CO-COMMISSIONING,NETHERGREEN SURGERY,27182466,"1,690.00 "
Department of Health,NHS Sheffield CCG,31/05/2019,C&M-PMS Prem Cost Rent,PRC DELEGATED CO-COMMISSIONING,NETHERGREEN SURGERY,27182466,"5,057.33 "
Department of Health,NHS Sheffield CCG,31/05/2019,C&M-PMS Prem Rates,PRC DELEGATED CO-COMMISSIONING,NETHERGREEN SURGERY,27182466,"1,264.00 "
Department of Health,NHS Sheffield CCG,31/05/2019,C&M-PMS QOF Aspiration,PRC DELEGATED CO-COMMISSIONING,NETHERGREEN SURGERY,27182466,"6,406.79 "
Department of Health,NHS Sheffield CCG,31/05/2019,C&M-GMS Prem Other,PRC DELEGATED CO-COMMISSIONING,NHS ENGLAND,27084398,"4,749.65 "
Department of Health,NHS Sheffield CCG,31/05/2019,Contract- Refuse & Clinical Waste,PRC DELEGATED CO-COMMISSIONING,NHS ENGLAND,27084398,"74,070.55 "
Department of Health,NHS Sheffield CCG,31/05/2019,Other Gen Supplies & Srv,PRC DELEGATED CO-COMMISSIONING,NHS ENGLAND,27084398,"20,982.00 "
Department of Health,NHS Sheffield CCG,31/05/2019,Charges from CSU,BUSINESS INFORMATICS,NHS NORTH OF ENGLAND CSU,27389017,"27,376.00 "
Department of Health,NHS Sheffield CCG,31/05/2019,C&M-GMS Cost of Drugs -Prescribing,LOCAL ENHANCED SERVICES,NORFOLK PARK HEALTH CENTRE,27407028,254.26 
Department of Health,NHS Sheffield CCG,31/05/2019,C&M-GMS DES Learn Dsblty Hlth Chk,PRC DELEGATED CO-COMMISSIONING,NORFOLK PARK HEALTH CENTRE,27407028,"4,620.00 "
Department of Health,NHS Sheffield CCG,31/05/2019,C&M-GMS DES Minor Surgery,PRC DELEGATED CO-COMMISSIONING,NORFOLK PARK HEALTH CENTRE,27407028,250.00 
Department of Health,NHS Sheffield CCG,31/05/2019,C&M-GMS Global Sum,PRC DELEGATED CO-COMMISSIONING,NORFOLK PARK HEALTH CENTRE,27407028,"38,820.25 "
Department of Health,NHS Sheffield CCG,31/05/2019,C&M-GMS MPIG Correction Factor,PRC DELEGATED CO-COMMISSIONING,NORFOLK PARK HEALTH CENTRE,27407028,462.30 
Department of Health,NHS Sheffield CCG,31/05/2019,C&M-GMS Prem Healthcentre Rent,PRC DELEGATED CO-COMMISSIONING,NORFOLK PARK HEALTH CENTRE,27407028,"25,595.16 "
Department of Health,NHS Sheffield CCG,31/05/2019,C&M-GMS Prof Fees Prescribing,PRC DELEGATED CO-COMMISSIONING,NORFOLK PARK HEALTH CENTRE,27407028,89.95 
Department of Health,NHS Sheffield CCG,31/05/2019,C&M-GMS QOF Aspiration,PRC DELEGATED CO-COMMISSIONING,NORFOLK PARK HEALTH CENTRE,27407028,"3,941.29 "
Department of Health,NHS Sheffield CCG,31/05/2019,C&M-GMS Cost of Drugs -Prescribing,LOCAL ENHANCED SERVICES,NORWOOD MEDICAL CENTRE SHEFFIELD,27407031,170.76 
Department of Health,NHS Sheffield CCG,31/05/2019,C&M-GMS DES Learn Dsblty Hlth Chk,PRC DELEGATED CO-COMMISSIONING,NORWOOD MEDICAL CENTRE SHEFFIELD,27407031,"2,800.00 "
Department of Health,NHS Sheffield CCG,31/05/2019,C&M-GMS DES Minor Surgery,PRC DELEGATED CO-COMMISSIONING,NORWOOD MEDICAL CENTRE SHEFFIELD,27407031,"2,920.00 "
Department of Health,NHS Sheffield CCG,31/05/2019,C&M-GMS Global Sum,PRC DELEGATED CO-COMMISSIONING,NORWOOD MEDICAL CENTRE SHEFFIELD,27407031,"65,518.07 "
Department of Health,NHS Sheffield CCG,31/05/2019,C&M-GMS PCO Locum Adop/Pat/Mat,PRC DELEGATED CO-COMMISSIONING,NORWOOD MEDICAL CENTRE SHEFFIELD,27407031,"4,055.12 "
Department of Health,NHS Sheffield CCG,31/05/2019,C&M-GMS Prem Notional Rent,PRC DELEGATED CO-COMMISSIONING,NORWOOD MEDICAL CENTRE SHEFFIELD,27407031,"5,187.50 "
Department of Health,NHS Sheffield CCG,31/05/2019,C&M-GMS Prem Rates,PRC DELEGATED CO-COMMISSIONING,NORWOOD MEDICAL CENTRE SHEFFIELD,27407031,"1,279.00 "
Department of Health,NHS Sheffield CCG,31/05/2019,C&M-GMS Prof Fees Prescribing,PRC DELEGATED CO-COMMISSIONING,NORWOOD MEDICAL CENTRE SHEFFIELD,27407031,95.09 
Department of Health,NHS Sheffield CCG,31/05/2019,C&M-GMS QOF Aspiration,PRC DELEGATED CO-COMMISSIONING,NORWOOD MEDICAL CENTRE SHEFFIELD,27407031,"8,171.17 "
Department of Health,NHS Sheffield CCG,31/05/2019,Hcare Srv Rec NHS Trust-Contract Baseline,ACUTE COMMISSIONING,NOTTINGHAM UNIVERSITY HOSPITALS NHS TRUST,27107903,"(38,936.00)"
Department of Health,NHS Sheffield CCG,31/05/2019,Clinical&Medical-Independent Sector,ACUTE COMMISSIONING,ONEHEALTH GROUP,27294491,"71,286.25 "
Department of Health,NHS Sheffield CCG,31/05/2019,Clinical&Medical-Independent Sector,ACUTE COMMISSIONING,ONEHEALTH GROUP,27416597,"71,286.25 "
Department of Health,NHS Sheffield CCG,31/05/2019,C&M-GMS Cost of Drugs -Dispensing,LOCAL ENHANCED SERVICES,OUGHTIBRIDGE SURGERY,27407034,"(13,895.69)"
Department of Health,NHS Sheffield CCG,31/05/2019,C&M-GMS PrscChrgsCll&RmttdbyGPCntra,PRC DELEGATED CO-COMMISSIONING,OUGHTIBRIDGE SURGERY,27407034,(589.60)
Department of Health,NHS Sheffield CCG,31/05/2019,C&M-GMS Cost of Drugs -Dispensing,LOCAL ENHANCED SERVICES,OUGHTIBRIDGE SURGERY,27407035,"27,236.83 "
Department of Health,NHS Sheffield CCG,31/05/2019,C&M-GMS DES Learn Dsblty Hlth Chk,PRC DELEGATED CO-COMMISSIONING,OUGHTIBRIDGE SURGERY,27407035,280.00 
Department of Health,NHS Sheffield CCG,31/05/2019,C&M-GMS DES Minor Surgery,PRC DELEGATED CO-COMMISSIONING,OUGHTIBRIDGE SURGERY,27407035,440.00 
Department of Health,NHS Sheffield CCG,31/05/2019,C&M-GMS Dispensing Quality Sch,PRC DELEGATED CO-COMMISSIONING,OUGHTIBRIDGE SURGERY,27407035,"2,951.52 "
Department of Health,NHS Sheffield CCG,31/05/2019,C&M-GMS Global Sum,PRC DELEGATED CO-COMMISSIONING,OUGHTIBRIDGE SURGERY,27407035,"43,012.45 "
Department of Health,NHS Sheffield CCG,31/05/2019,C&M-GMS PCO Locum Adop/Pat/Mat,PRC DELEGATED CO-COMMISSIONING,OUGHTIBRIDGE SURGERY,27407035,"3,188.43 "
Department of Health,NHS Sheffield CCG,31/05/2019,C&M-GMS PCO Other,PRC DELEGATED CO-COMMISSIONING,OUGHTIBRIDGE SURGERY,27407035,"3,831.00 "
Department of Health,NHS Sheffield CCG,31/05/2019,C&M-GMS Prem Notional Rent,PRC DELEGATED CO-COMMISSIONING,OUGHTIBRIDGE SURGERY,27407035,"3,957.33 "
Department of Health,NHS Sheffield CCG,31/05/2019,C&M-GMS Prem Rates,PRC DELEGATED CO-COMMISSIONING,OUGHTIBRIDGE SURGERY,27407035,895.00 
Department of Health,NHS Sheffield CCG,31/05/2019,C&M-GMS Prem Water Rates,PRC DELEGATED CO-COMMISSIONING,OUGHTIBRIDGE SURGERY,27407035,145.22 
Department of Health,NHS Sheffield CCG,31/05/2019,C&M-GMS Prof Fees Dispensing,PRC DELEGATED CO-COMMISSIONING,OUGHTIBRIDGE SURGERY,27407035,"4,674.86 "
Department of Health,NHS Sheffield CCG,31/05/2019,C&M-GMS PrscrptnChrgsColl&RmttdbyGP,LOCAL ENHANCED SERVICES,OUGHTIBRIDGE SURGERY,27407035,589.60 
Department of Health,NHS Sheffield CCG,31/05/2019,C&M-GMS QOF Aspiration,PRC DELEGATED CO-COMMISSIONING,OUGHTIBRIDGE SURGERY,27407035,"4,261.60 "
Department of Health,NHS Sheffield CCG,31/05/2019,C&M-PMS Contract Value,PRC DELEGATED CO-COMMISSIONING,OWLTHORPE MEDICAL CENTRE,27182468,"33,051.17 "
Department of Health,NHS Sheffield CCG,31/05/2019,C&M-PMS DES Minor Surgery,PRC DELEGATED CO-COMMISSIONING,OWLTHORPE MEDICAL CENTRE,27182468,"1,360.00 "
Department of Health,NHS Sheffield CCG,31/05/2019,C&M-PMS Out of Hours Opt Outs,PRC DELEGATED CO-COMMISSIONING,OWLTHORPE MEDICAL CENTRE,27182468,14.26 
Department of Health,NHS Sheffield CCG,31/05/2019,C&M-PMS Prem Actual Rent,PRC DELEGATED CO-COMMISSIONING,OWLTHORPE MEDICAL CENTRE,27182468,"7,539.58 "
Department of Health,NHS Sheffield CCG,31/05/2019,C&M-PMS QOF Aspiration,PRC DELEGATED CO-COMMISSIONING,OWLTHORPE MEDICAL CENTRE,27182468,"3,873.48 "
Department of Health,NHS Sheffield CCG,31/05/2019,C&M-PMS Contract Value,PRC DELEGATED CO-COMMISSIONING,PAGE HALL MEDICAL CENTRE,27182470,"56,677.67 "
Department of Health,NHS Sheffield CCG,31/05/2019,C&M-PMS DES Minor Surgery,PRC DELEGATED CO-COMMISSIONING,PAGE HALL MEDICAL CENTRE,27182470,160.00 
Department of Health,NHS Sheffield CCG,31/05/2019,C&M-PMS Out of Hours Opt Outs,PRC DELEGATED CO-COMMISSIONING,PAGE HALL MEDICAL CENTRE,27182470,21.50 
Department of Health,NHS Sheffield CCG,31/05/2019,C&M-PMS PCO Locum Adop/Pat/Mat,PRC DELEGATED CO-COMMISSIONING,PAGE HALL MEDICAL CENTRE,27182470,"13,723.89 "
Department of Health,NHS Sheffield CCG,31/05/2019,C&M-PMS Prem Notional Rent,PRC DELEGATED CO-COMMISSIONING,PAGE HALL MEDICAL CENTRE,27182470,"4,833.33 "
Department of Health,NHS Sheffield CCG,31/05/2019,C&M-PMS Prem Rates,PRC DELEGATED CO-COMMISSIONING,PAGE HALL MEDICAL CENTRE,27182470,"1,077.00 "
Department of Health,NHS Sheffield CCG,31/05/2019,C&M-PMS QOF Aspiration,PRC DELEGATED CO-COMMISSIONING,PAGE HALL MEDICAL CENTRE,27182470,"4,558.05 "
Department of Health,NHS Sheffield CCG,31/05/2019,Clinical&Medical-Othe Public Sector,BEREAVEMENT SERVICE,PCC FOR SOUTH YORKSHIRE POLICE,27253565,"86,424.00 "
Department of Health,NHS Sheffield CCG,31/05/2019,Clinical&Medical-Othe Public Sector,BEREAVEMENT SERVICE,PCC FOR SOUTH YORKSHIRE POLICE,27253718,"(86,424.00)"
Department of Health,NHS Sheffield CCG,31/05/2019,Clinical&Medical-Othe Public Sector,BEREAVEMENT SERVICE,PCC FOR SOUTH YORKSHIRE POLICE,27294302,"86,424.00 "
Department of Health,NHS Sheffield CCG,31/05/2019,C&M-PMS Contract Value,PRC DELEGATED CO-COMMISSIONING,PORTER BROOK MEDICAL CENTRE,27182471,"(2,091.66)"
Department of Health,NHS Sheffield CCG,31/05/2019,C&M-PMS GP Statutory Levy,PRC DELEGATED CO-COMMISSIONING,PORTER BROOK MEDICAL CENTRE,27182471,(875.16)
Department of Health,NHS Sheffield CCG,31/05/2019,C&M-PMS Out of Hours Opt Outs,PRC DELEGATED CO-COMMISSIONING,PORTER BROOK MEDICAL CENTRE,27182471,"(7,778.42)"
Department of Health,NHS Sheffield CCG,31/05/2019,C&M-PMS Voluntary Levy,PRC DELEGATED CO-COMMISSIONING,PORTER BROOK MEDICAL CENTRE,27182471,(145.86)
Department of Health,NHS Sheffield CCG,31/05/2019,C&M-PMS Contract Value,PRC DELEGATED CO-COMMISSIONING,PORTER BROOK MEDICAL CENTRE,27182472,"165,855.67 "
Department of Health,NHS Sheffield CCG,31/05/2019,C&M-PMS DES Learn Dsblty Hlth Chk,PRC DELEGATED CO-COMMISSIONING,PORTER BROOK MEDICAL CENTRE,27182472,840.00 
Department of Health,NHS Sheffield CCG,31/05/2019,C&M-PMS DES Minor Surgery,PRC DELEGATED CO-COMMISSIONING,PORTER BROOK MEDICAL CENTRE,27182472,"4,480.00 "
Department of Health,NHS Sheffield CCG,31/05/2019,C&M-PMS Out of Hours Opt Outs,PRC DELEGATED CO-COMMISSIONING,PORTER BROOK MEDICAL CENTRE,27182472,98.10 
Department of Health,NHS Sheffield CCG,31/05/2019,C&M-PMS Prem Actual Rent,PRC DELEGATED CO-COMMISSIONING,PORTER BROOK MEDICAL CENTRE,27182472,"1,333.33 "
Department of Health,NHS Sheffield CCG,31/05/2019,C&M-PMS Prem Notional Rent,PRC DELEGATED CO-COMMISSIONING,PORTER BROOK MEDICAL CENTRE,27182472,"9,666.67 "
Department of Health,NHS Sheffield CCG,31/05/2019,C&M-PMS Prem Rates,PRC DELEGATED CO-COMMISSIONING,PORTER BROOK MEDICAL CENTRE,27182472,"2,271.00 "
Department of Health,NHS Sheffield CCG,31/05/2019,C&M-PMS QOF Aspiration,PRC DELEGATED CO-COMMISSIONING,PORTER BROOK MEDICAL CENTRE,27182472,"8,838.31 "
Department of Health,NHS Sheffield CCG,31/05/2019,Clinical&Medical-Commercial Sector,PATIENT TRANSPORT,PREMIER CARE DIRECT LTD,27083296,"112,480.55 "
Department of Health,NHS Sheffield CCG,31/05/2019,Clinical&Medical-Commercial Sector,PATIENT TRANSPORT,PREMIER CARE DIRECT LTD,27460418,"112,480.55 "
Department of Health,NHS Sheffield CCG,31/05/2019,C&M-GMS LES Basket of Procedures,LOCAL ENHANCED SERVICES,PRIMARY CARE SHEFFIELD LTD,27460508,"52,308.33 "
Department of Health,NHS Sheffield CCG,31/05/2019,C&M-APMS DES Extended Hours Access,GP FORWARD VIEW,PRIMARY CARE SHEFFIELD LTD,27460529,"299,966.67 "
Department of Health,NHS Sheffield CCG,31/05/2019,C&M-APMS DES Extended Hours Access,GP FORWARD VIEW,PRIMARY CARE SHEFFIELD LTD,27487797,"295,941.67 "
Department of Health,NHS Sheffield CCG,31/05/2019,C&M-GMS LES Basket of Procedures,LOCAL ENHANCED SERVICES,PRIMARY CARE SHEFFIELD LTD,27487798,"52,308.33 "
Department of Health,NHS Sheffield CCG,31/05/2019,C&M-PMS Contract Value,PRC DELEGATED CO-COMMISSIONING,RICHMOND MEDICAL CENTRE,27182474,"66,369.68 "
Department of Health,NHS Sheffield CCG,31/05/2019,C&M-PMS DES Minor Surgery,PRC DELEGATED CO-COMMISSIONING,RICHMOND MEDICAL CENTRE,27182474,"1,745.00 "
Department of Health,NHS Sheffield CCG,31/05/2019,C&M-PMS PCO Other,PRC DELEGATED CO-COMMISSIONING,RICHMOND MEDICAL CENTRE,27182474,"1,123.00 "
Department of Health,NHS Sheffield CCG,31/05/2019,C&M-PMS Prem Notional Rent,PRC DELEGATED CO-COMMISSIONING,RICHMOND MEDICAL CENTRE,27182474,"4,731.00 "
Department of Health,NHS Sheffield CCG,31/05/2019,C&M-PMS Prem Rates,PRC DELEGATED CO-COMMISSIONING,RICHMOND MEDICAL CENTRE,27182474,"2,516.75 "
Department of Health,NHS Sheffield CCG,31/05/2019,C&M-PMS Prem Water Rates,PRC DELEGATED CO-COMMISSIONING,RICHMOND MEDICAL CENTRE,27182474,453.12 
Department of Health,NHS Sheffield CCG,31/05/2019,C&M-PMS QOF Aspiration,PRC DELEGATED CO-COMMISSIONING,RICHMOND MEDICAL CENTRE,27182474,"8,208.20 "
Department of Health,NHS Sheffield CCG,31/05/2019,Cont Care-Physical Disab (<65),CHC ADULT FULLY FUNDED,ROSEBERRY CARE CENTRES,27276930,"30,651.55 "
Department of Health,NHS Sheffield CCG,31/05/2019,Cont Care-Physical Disab (<65),CHC ADULT FULLY FUNDED,ROSEBERRY CARE CENTRES,27277231,"39,492.41 "
Department of Health,NHS Sheffield CCG,31/05/2019,Cont Care-Funded Nursing Care Allow,FUNDED NURSING CARE,ROSEBERRY CARE CENTRES,27294403,"32,891.46 "
Department of Health,NHS Sheffield CCG,31/05/2019,Hcare Srv Rec Fdtn Trust-Contract Baseline,MENTAL HEALTH CONTRACTS,ROTHERHAM DONCASTER & SOUTH HUMBER MENTAL HEALTH NHS FOUNDATION TRUST,27359964,"25,487.95 "
Department of Health,NHS Sheffield CCG,31/05/2019,Hcare Srv Rec Fdtn Trust-Contract Baseline,ACUTE COMMISSIONING,ROTHERHAM NHS FOUNDATION TRUST,27119150,"463,910.00 "
Department of Health,NHS Sheffield CCG,31/05/2019,C&M-PMS Contract Value,PRC DELEGATED CO-COMMISSIONING,RUSTLINGS ROAD MEDICAL CENTRE,27182478,"27,927.20 "
Department of Health,NHS Sheffield CCG,31/05/2019,C&M-PMS PCO Other,PRC DELEGATED CO-COMMISSIONING,RUSTLINGS ROAD MEDICAL CENTRE,27182478,627.60 
Department of Health,NHS Sheffield CCG,31/05/2019,C&M-PMS Prem Notional Rent,PRC DELEGATED CO-COMMISSIONING,RUSTLINGS ROAD MEDICAL CENTRE,27182478,"1,312.50 "
Department of Health,NHS Sheffield CCG,31/05/2019,C&M-PMS QOF Aspiration,PRC DELEGATED CO-COMMISSIONING,RUSTLINGS ROAD MEDICAL CENTRE,27182478,"2,653.37 "
Department of Health,NHS Sheffield CCG,31/05/2019,Cont Care-Physical Disab (<65),CHC ADULT FULLY FUNDED,SEVEN HILLS NURSING HOME,27277242,"30,412.67 "
Department of Health,NHS Sheffield CCG,31/05/2019,C&M-GMS Cost of Drugs -Prescribing,LOCAL ENHANCED SERVICES,SHARROW LANE MEDICAL CENTRE,27407038,"1,710.20 "
Department of Health,NHS Sheffield CCG,31/05/2019,C&M-GMS DES Learn Dsblty Hlth Chk,PRC DELEGATED CO-COMMISSIONING,SHARROW LANE MEDICAL CENTRE,27407038,"2,800.00 "
Department of Health,NHS Sheffield CCG,31/05/2019,C&M-GMS DES Minor Surgery,PRC DELEGATED CO-COMMISSIONING,SHARROW LANE MEDICAL CENTRE,27407038,40.00 
Department of Health,NHS Sheffield CCG,31/05/2019,C&M-GMS Global Sum,PRC DELEGATED CO-COMMISSIONING,SHARROW LANE MEDICAL CENTRE,27407038,"23,612.32 "
Department of Health,NHS Sheffield CCG,31/05/2019,C&M-GMS MPIG Correction Factor,PRC DELEGATED CO-COMMISSIONING,SHARROW LANE MEDICAL CENTRE,27407038,980.16 
Department of Health,NHS Sheffield CCG,31/05/2019,C&M-GMS PCO Other,PRC DELEGATED CO-COMMISSIONING,SHARROW LANE MEDICAL CENTRE,27407038,548.00 
Department of Health,NHS Sheffield CCG,31/05/2019,C&M-GMS Prem Notional Rent,PRC DELEGATED CO-COMMISSIONING,SHARROW LANE MEDICAL CENTRE,27407038,"2,741.67 "
Department of Health,NHS Sheffield CCG,31/05/2019,C&M-GMS Prem Rates,PRC DELEGATED CO-COMMISSIONING,SHARROW LANE MEDICAL CENTRE,27407038,581.00 
Department of Health,NHS Sheffield CCG,31/05/2019,C&M-GMS Prof Fees Prescribing,PRC DELEGATED CO-COMMISSIONING,SHARROW LANE MEDICAL CENTRE,27407038,257.00 
Department of Health,NHS Sheffield CCG,31/05/2019,C&M-GMS QOF Aspiration,PRC DELEGATED CO-COMMISSIONING,SHARROW LANE MEDICAL CENTRE,27407038,"2,666.85 "
Department of Health,NHS Sheffield CCG,31/05/2019,Hcare Srv Rec Fdtn Trust-Contract Baseline,ACUTE CHILDRENS SERVICES,SHEFFIELD CHILDRENS NHS FOUNDATION TRUST,27293309,"3,086,899.79 "
Department of Health,NHS Sheffield CCG,31/05/2019,Cont Care- Children,CHC CHILDREN,SHEFFIELD CITY COUNCIL,27083536,"51,388.66 "
Department of Health,NHS Sheffield CCG,31/05/2019,Cont Care- Prior Year Payments,CHC ADULT FULLY FUNDED,SHEFFIELD CITY COUNCIL,27083557,"133,207.19 "
Department of Health,NHS Sheffield CCG,31/05/2019,Cont Care-Physical Disab (65+),CHC ADULT FULLY FUNDED,SHEFFIELD CITY COUNCIL,27083571,"667,229.10 "
Department of Health,NHS Sheffield CCG,31/05/2019,Clinical&Medical-Othe Public Sector,COMMISSIONING - NON ACUTE,SHEFFIELD CITY COUNCIL,27090728,"21,831.00 "
Department of Health,NHS Sheffield CCG,31/05/2019,Clinical&Medical-Othe Public Sector,COMMUNITY SERVICES,SHEFFIELD CITY COUNCIL,27090728,"150,417.00 "
Department of Health,NHS Sheffield CCG,31/05/2019,Clinical&Medical-Othe Public Sector,MENTAL HEALTH SERVICES - COLLABORATIVE COMMISSIONING,SHEFFIELD CITY COUNCIL,27090728,"14,167.75 "
Department of Health,NHS Sheffield CCG,31/05/2019,Clinical&Medical-Othe Public Sector,SAFEGUARDING,SHEFFIELD CITY COUNCIL,27090728,"12,235.00 "
Department of Health,NHS Sheffield CCG,31/05/2019,Soc Care-Joint H&C Teams/Working,COMMUNITY SERVICES,SHEFFIELD CITY COUNCIL,27090728,"151,448.00 "
Department of Health,NHS Sheffield CCG,31/05/2019,Soc Care-Other Soc Care,COMMISSIONING - NON ACUTE,SHEFFIELD CITY COUNCIL,27090728,"1,467,750.00 "
Department of Health,NHS Sheffield CCG,31/05/2019,Soc Care-Support Prim Care,COMMUNITY SERVICES,SHEFFIELD CITY COUNCIL,27090728,"58,000.00 "
Department of Health,NHS Sheffield CCG,31/05/2019,Soc Care-Learn Disab Servs,LEARNING DIFFICULTIES,SHEFFIELD CITY COUNCIL,27090741,"249,000.00 "
Department of Health,NHS Sheffield CCG,31/05/2019,Clinical&Medical-Othe Public Sector,COMMISSIONING - NON ACUTE,SHEFFIELD CITY COUNCIL,27253692,"21,831.00 "
Department of Health,NHS Sheffield CCG,31/05/2019,Clinical&Medical-Othe Public Sector,COMMUNITY SERVICES,SHEFFIELD CITY COUNCIL,27253692,"150,417.00 "
Department of Health,NHS Sheffield CCG,31/05/2019,Clinical&Medical-Othe Public Sector,MENTAL HEALTH SERVICES - COLLABORATIVE COMMISSIONING,SHEFFIELD CITY COUNCIL,27253692,"14,167.75 "
Department of Health,NHS Sheffield CCG,31/05/2019,Clinical&Medical-Othe Public Sector,SAFEGUARDING,SHEFFIELD CITY COUNCIL,27253692,"12,235.00 "
Department of Health,NHS Sheffield CCG,31/05/2019,Soc Care-Other Soc Care,COMMISSIONING - NON ACUTE,SHEFFIELD CITY COUNCIL,27253692,"1,467,750.00 "
Department of Health,NHS Sheffield CCG,31/05/2019,Soc Care-Support Prim Care,COMMUNITY SERVICES,SHEFFIELD CITY COUNCIL,27253692,"209,448.00 "
Department of Health,NHS Sheffield CCG,31/05/2019,Cont Care-Physical Disab (65+),CHC ADULT FULLY FUNDED,SHEFFIELD CITY COUNCIL,27253715,"812,080.26 "
Department of Health,NHS Sheffield CCG,31/05/2019,Cont Care- Children,CHC CHILDREN,SHEFFIELD CITY COUNCIL,27253716,"53,260.22 "
Department of Health,NHS Sheffield CCG,31/05/2019,Cont Care- Prior Year Payments,CHC ADULT FULLY FUNDED,SHEFFIELD CITY COUNCIL,27416480,"57,933.85 "
Department of Health,NHS Sheffield CCG,31/05/2019,Cont Care- Prior Year Payments,ADULT JOINT FUNDED CONTINUING CARE,SHEFFIELD CITY COUNCIL,27416495,"103,348.00 "
Department of Health,NHS Sheffield CCG,31/05/2019,Other Gen Supplies & Srv,BEREAVEMENT SERVICE,SHEFFIELD COLLEGE (THE),27253632,"50,000.00 "
Department of Health,NHS Sheffield CCG,31/05/2019,Hcare Srv Rec Fdtn Trust-Contract Baseline,MENTAL HEALTH CONTRACTS,SHEFFIELD HEALTH & SOCIAL CARE NHS FOUNDATION TRUST,27090724,"6,833,545.75 "
Department of Health,NHS Sheffield CCG,31/05/2019,Hcare Srv Rec Fdtn Trust-Non Contract,MENTAL HEALTH CONTRACTS,SHEFFIELD HEALTH & SOCIAL CARE NHS FOUNDATION TRUST,27416544,"6,833,545.75 "
Department of Health,NHS Sheffield CCG,31/05/2019,Hcare Srv Rec Fdtn Trust-Contract Baseline,MENTAL HEALTH CONTRACTS,SHEFFIELD HEALTH & SOCIAL CARE NHS FOUNDATION TRUST,27422520,"6,833,545.75 "
Department of Health,NHS Sheffield CCG,31/05/2019,Hcare Srv Rec Fdtn Trust-Drugs,HOSPICES,SHEFFIELD TEACHING HOSPITALS NHS FOUNDATION TRUST,27083052,"54,951.29 "
Department of Health,NHS Sheffield CCG,31/05/2019,Hcare Srv Rec Fdtn Trust-Drugs,HOSPICES,SHEFFIELD TEACHING HOSPITALS NHS FOUNDATION TRUST,27083055,"(76,651.16)"
Department of Health,NHS Sheffield CCG,31/05/2019,Hcare Srv Rec Fdtn Trust-Contract Baseline,ACUTE COMMISSIONING,SHEFFIELD TEACHING HOSPITALS NHS FOUNDATION TRUST,27083676,"32,953,643.00 "
Department of Health,NHS Sheffield CCG,31/05/2019,Hcare Srv Rec Fdtn Trust-Contract Baseline,ACUTE COMMISSIONING,SHEFFIELD TEACHING HOSPITALS NHS FOUNDATION TRUST,27083687,"3,892,048.00 "
Department of Health,NHS Sheffield CCG,31/05/2019,Hcare Srv Rec Fdtn Trust-Contract Baseline,ACUTE COMMISSIONING,SHEFFIELD TEACHING HOSPITALS NHS FOUNDATION TRUST,27083693,"385,431.00 "
Department of Health,NHS Sheffield CCG,31/05/2019,Hcare Srv Rec Fdtn Trust-Contract Baseline,ACUTE COMMISSIONING,SHEFFIELD TEACHING HOSPITALS NHS FOUNDATION TRUST,27083795,"1,453,562.00 "
Department of Health,NHS Sheffield CCG,31/05/2019,Other Gen Supplies & Srv,CLINICAL LEADS,SHEFFIELD TEACHING HOSPITALS NHS FOUNDATION TRUST,27119052,"147,570.00 "
Department of Health,NHS Sheffield CCG,31/05/2019,Hcare Srv Rec Fdtn Trust-Contract Baseline,ACUTE COMMISSIONING,SHEFFIELD TEACHING HOSPITALS NHS FOUNDATION TRUST,27167997,"(116,700.00)"
Department of Health,NHS Sheffield CCG,31/05/2019,Hcare Srv Rec Fdtn Trust-Contract Baseline,ACUTE COMMISSIONING,SHEFFIELD TEACHING HOSPITALS NHS FOUNDATION TRUST,27416703,"192,715.00 "
Department of Health,NHS Sheffield CCG,31/05/2019,Hcare Srv Rec Fdtn Trust-Contract Baseline,ACUTE COMMISSIONING,SHEFFIELD TEACHING HOSPITALS NHS FOUNDATION TRUST,27416705,"3,898,718.00 "
Department of Health,NHS Sheffield CCG,31/05/2019,Hcare Srv Rec Fdtn Trust-Contract Baseline,ACUTE COMMISSIONING,SHEFFIELD TEACHING HOSPITALS NHS FOUNDATION TRUST,27416707,"1,367,220.00 "
Department of Health,NHS Sheffield CCG,31/05/2019,Hcare Srv Rec Fdtn Trust-Contract Baseline,ACUTE COMMISSIONING,SHEFFIELD TEACHING HOSPITALS NHS FOUNDATION TRUST,27416724,"30,408,061.00 "
Department of Health,NHS Sheffield CCG,31/05/2019,C&M-GMS Cost of Drugs -Prescribing,LOCAL ENHANCED SERVICES,SHIREGREEN MEDICAL CENTRE,27407046,"1,144.77 "
Department of Health,NHS Sheffield CCG,31/05/2019,C&M-GMS DES Extended Hours Access,PRC DELEGATED CO-COMMISSIONING,SHIREGREEN MEDICAL CENTRE,27407046,"11,163.45 "
Department of Health,NHS Sheffield CCG,31/05/2019,C&M-GMS DES Minor Surgery,PRC DELEGATED CO-COMMISSIONING,SHIREGREEN MEDICAL CENTRE,27407046,40.00 
Department of Health,NHS Sheffield CCG,31/05/2019,C&M-GMS Global Sum,PRC DELEGATED CO-COMMISSIONING,SHIREGREEN MEDICAL CENTRE,27407046,"58,880.51 "
Department of Health,NHS Sheffield CCG,31/05/2019,C&M-GMS MPIG Correction Factor,PRC DELEGATED CO-COMMISSIONING,SHIREGREEN MEDICAL CENTRE,27407046,226.84 
Department of Health,NHS Sheffield CCG,31/05/2019,C&M-GMS Prem Cost Rent,PRC DELEGATED CO-COMMISSIONING,SHIREGREEN MEDICAL CENTRE,27407046,"1,792.33 "
Department of Health,NHS Sheffield CCG,31/05/2019,C&M-GMS Prem Notional Rent,PRC DELEGATED CO-COMMISSIONING,SHIREGREEN MEDICAL CENTRE,27407046,"5,375.00 "
Department of Health,NHS Sheffield CCG,31/05/2019,C&M-GMS Prem Rates,PRC DELEGATED CO-COMMISSIONING,SHIREGREEN MEDICAL CENTRE,27407046,"1,922.00 "
Department of Health,NHS Sheffield CCG,31/05/2019,C&M-GMS Prof Fees Prescribing,PRC DELEGATED CO-COMMISSIONING,SHIREGREEN MEDICAL CENTRE,27407046,138.78 
Department of Health,NHS Sheffield CCG,31/05/2019,C&M-GMS QOF Aspiration,PRC DELEGATED CO-COMMISSIONING,SHIREGREEN MEDICAL CENTRE,27407046,"6,849.89 "
Department of Health,NHS Sheffield CCG,31/05/2019,C&M-PMS Contract Value,PRC DELEGATED CO-COMMISSIONING,SLOAN MEDICAL CENTRE,27182480,"94,824.04 "
Department of Health,NHS Sheffield CCG,31/05/2019,C&M-PMS DES Minor Surgery,PRC DELEGATED CO-COMMISSIONING,SLOAN MEDICAL CENTRE,27182480,"2,555.00 "
Department of Health,NHS Sheffield CCG,31/05/2019,C&M-PMS PCO Other,PRC DELEGATED CO-COMMISSIONING,SLOAN MEDICAL CENTRE,27182480,"1,605.80 "
Department of Health,NHS Sheffield CCG,31/05/2019,C&M-PMS Prem Actual Rent,PRC DELEGATED CO-COMMISSIONING,SLOAN MEDICAL CENTRE,27182480,"15,535.83 "
Department of Health,NHS Sheffield CCG,31/05/2019,C&M-PMS Prem Notional Rent,PRC DELEGATED CO-COMMISSIONING,SLOAN MEDICAL CENTRE,27182480,608.33 
Department of Health,NHS Sheffield CCG,31/05/2019,C&M-PMS Prem Rates,PRC DELEGATED CO-COMMISSIONING,SLOAN MEDICAL CENTRE,27182480,"3,423.00 "
Department of Health,NHS Sheffield CCG,31/05/2019,C&M-PMS Prem Water Rates,PRC DELEGATED CO-COMMISSIONING,SLOAN MEDICAL CENTRE,27182480,54.50 
Department of Health,NHS Sheffield CCG,31/05/2019,C&M-PMS QOF Aspiration,PRC DELEGATED CO-COMMISSIONING,SLOAN MEDICAL CENTRE,27182480,"10,003.70 "
Department of Health,NHS Sheffield CCG,31/05/2019,C&M-PMS Contract Value,PRC DELEGATED CO-COMMISSIONING,SOTHALL MEDICAL CENTRE,27182482,"70,809.42 "
Department of Health,NHS Sheffield CCG,31/05/2019,C&M-PMS DES Learn Dsblty Hlth Chk,PRC DELEGATED CO-COMMISSIONING,SOTHALL MEDICAL CENTRE,27182482,"1,540.00 "
Department of Health,NHS Sheffield CCG,31/05/2019,C&M-PMS DES Minor Surgery,PRC DELEGATED CO-COMMISSIONING,SOTHALL MEDICAL CENTRE,27182482,740.00 
Department of Health,NHS Sheffield CCG,31/05/2019,C&M-PMS PCO Other,PRC DELEGATED CO-COMMISSIONING,SOTHALL MEDICAL CENTRE,27182482,"1,255.20 "
Department of Health,NHS Sheffield CCG,31/05/2019,C&M-PMS Prem Notional Rent,PRC DELEGATED CO-COMMISSIONING,SOTHALL MEDICAL CENTRE,27182482,"5,116.67 "
Department of Health,NHS Sheffield CCG,31/05/2019,C&M-PMS Prem Rates,PRC DELEGATED CO-COMMISSIONING,SOTHALL MEDICAL CENTRE,27182482,"1,412.00 "
Department of Health,NHS Sheffield CCG,31/05/2019,C&M-PMS QOF Aspiration,PRC DELEGATED CO-COMMISSIONING,SOTHALL MEDICAL CENTRE,27182482,"8,630.52 "
Department of Health,NHS Sheffield CCG,31/05/2019,Cont Care-Physical Disab (<65),CHC ADULT FULLY FUNDED,SOUTH YORKSHIRE HOUSING ASSOCIATION LTD,27253717,"91,018.06 "
Department of Health,NHS Sheffield CCG,31/05/2019,Clinical&Medical-Independent Sector,MENTAL HEALTH CONTRACTS,SOUTH YORKSHIRE HOUSING ASSOCIATION LTD,27293882,"34,435.00 "
Department of Health,NHS Sheffield CCG,31/05/2019,Clinical&Medical-Independent Sector,MENTAL HEALTH CONTRACTS,SOUTH YORKSHIRE HOUSING ASSOCIATION LTD,27293900,"34,435.00 "
Department of Health,NHS Sheffield CCG,31/05/2019,Cont Care- Adult 100% Fully Funded,CHC ADULT FULLY FUNDED,SOUTH YORKSHIRE HOUSING ASSOCIATION LTD,27294200,"46,763.59 "
Department of Health,NHS Sheffield CCG,31/05/2019,Cont Care- Adult 100% Fully Funded,CHC ADULT FULLY FUNDED,SOUTH YORKSHIRE HOUSING ASSOCIATION LTD,27294207,"46,763.59 "
Department of Health,NHS Sheffield CCG,31/05/2019,Cont Care- Adult 100% Fully Funded,CHC ADULT FULLY FUNDED,SOUTH YORKSHIRE HOUSING ASSOCIATION LTD,27333508,"25,500.00 "
Department of Health,NHS Sheffield CCG,31/05/2019,Cont Care- Adult 100% Fully Funded,CHC ADULT FULLY FUNDED,SOUTH YORKSHIRE HOUSING ASSOCIATION LTD,27333514,"25,500.00 "
Department of Health,NHS Sheffield CCG,31/05/2019,C&M-PMS Contract Value,PRC DELEGATED CO-COMMISSIONING,SOUTHEY GREEN MEDICAL CENTRE,27182484,"25,000.83 "
Department of Health,NHS Sheffield CCG,31/05/2019,C&M-PMS Out of Hours Opt Outs,PRC DELEGATED CO-COMMISSIONING,SOUTHEY GREEN MEDICAL CENTRE,27182484,17.24 
Department of Health,NHS Sheffield CCG,31/05/2019,C&M-PMS Prem Notional Rent,PRC DELEGATED CO-COMMISSIONING,SOUTHEY GREEN MEDICAL CENTRE,27182484,"3,362.50 "
Department of Health,NHS Sheffield CCG,31/05/2019,C&M-PMS QOF Aspiration,PRC DELEGATED CO-COMMISSIONING,SOUTHEY GREEN MEDICAL CENTRE,27182484,"2,668.69 "
Department of Health,NHS Sheffield CCG,31/05/2019,C&M-GMS Cost of Drugs -Prescribing,LOCAL ENHANCED SERVICES,STANNINGTON MEDICAL CENTRE,27407050,113.83 
Department of Health,NHS Sheffield CCG,31/05/2019,C&M-GMS DES Minor Surgery,PRC DELEGATED CO-COMMISSIONING,STANNINGTON MEDICAL CENTRE,27407050,80.00 
Department of Health,NHS Sheffield CCG,31/05/2019,C&M-GMS Global Sum,PRC DELEGATED CO-COMMISSIONING,STANNINGTON MEDICAL CENTRE,27407050,"25,532.28 "
Department of Health,NHS Sheffield CCG,31/05/2019,C&M-GMS Prem Notional Rent,PRC DELEGATED CO-COMMISSIONING,STANNINGTON MEDICAL CENTRE,27407050,"2,575.00 "
Department of Health,NHS Sheffield CCG,31/05/2019,C&M-GMS Prem Rates,PRC DELEGATED CO-COMMISSIONING,STANNINGTON MEDICAL CENTRE,27407050,903.40 
Department of Health,NHS Sheffield CCG,31/05/2019,C&M-GMS Prof Fees Prescribing,PRC DELEGATED CO-COMMISSIONING,STANNINGTON MEDICAL CENTRE,27407050,74.53 
Department of Health,NHS Sheffield CCG,31/05/2019,C&M-GMS QOF Aspiration,PRC DELEGATED CO-COMMISSIONING,STANNINGTON MEDICAL CENTRE,27407050,"2,881.70 "
Department of Health,NHS Sheffield CCG,31/05/2019,C&M-GMS Cost of Drugs -Prescribing,LOCAL ENHANCED SERVICES,STONECROFT MEDICAL CENTRE,27407048,515.24 
Department of Health,NHS Sheffield CCG,31/05/2019,C&M-GMS DES Minor Surgery,PRC DELEGATED CO-COMMISSIONING,STONECROFT MEDICAL CENTRE,27407048,"1,920.00 "
Department of Health,NHS Sheffield CCG,31/05/2019,C&M-GMS Global Sum,PRC DELEGATED CO-COMMISSIONING,STONECROFT MEDICAL CENTRE,27407048,"32,209.81 "
Department of Health,NHS Sheffield CCG,31/05/2019,C&M-GMS MPIG Correction Factor,PRC DELEGATED CO-COMMISSIONING,STONECROFT MEDICAL CENTRE,27407048,309.13 
Department of Health,NHS Sheffield CCG,31/05/2019,C&M-GMS PCO Other,PRC DELEGATED CO-COMMISSIONING,STONECROFT MEDICAL CENTRE,27407048,569.40 
Department of Health,NHS Sheffield CCG,31/05/2019,C&M-GMS Prem Notional Rent,PRC DELEGATED CO-COMMISSIONING,STONECROFT MEDICAL CENTRE,27407048,"2,808.33 "
Department of Health,NHS Sheffield CCG,31/05/2019,C&M-GMS Prem Rates,PRC DELEGATED CO-COMMISSIONING,STONECROFT MEDICAL CENTRE,27407048,"1,215.00 "
Department of Health,NHS Sheffield CCG,31/05/2019,C&M-GMS Prof Fees Prescribing,PRC DELEGATED CO-COMMISSIONING,STONECROFT MEDICAL CENTRE,27407048,154.20 
Department of Health,NHS Sheffield CCG,31/05/2019,C&M-GMS QOF Aspiration,PRC DELEGATED CO-COMMISSIONING,STONECROFT MEDICAL CENTRE,27407048,"4,228.40 "
Department of Health,NHS Sheffield CCG,31/05/2019,Clinical&Medical-Independent Sector,MENTAL HEALTH CONTRACTS,SUSASH GB LTD T/A EAGLE HOUSE,27236639,"30,092.00 "
Department of Health,NHS Sheffield CCG,31/05/2019,Cont Care-Physical Disab (<65),CHC ADULT FULLY FUNDED,SUSASH GB LTD T/A EAGLE HOUSE,27276898,"30,920.88 "
Department of Health,NHS Sheffield CCG,31/05/2019,C&M-GMS Global Sum,PRC DELEGATED CO-COMMISSIONING,TOTLEY RISE MEDICAL CENTRE,27407052,"24,909.66 "
Department of Health,NHS Sheffield CCG,31/05/2019,C&M-GMS MPIG Correction Factor,PRC DELEGATED CO-COMMISSIONING,TOTLEY RISE MEDICAL CENTRE,27407052,51.57 
Department of Health,NHS Sheffield CCG,31/05/2019,C&M-GMS Prem Notional Rent,PRC DELEGATED CO-COMMISSIONING,TOTLEY RISE MEDICAL CENTRE,27407052,"1,491.67 "
Department of Health,NHS Sheffield CCG,31/05/2019,C&M-GMS QOF Aspiration,PRC DELEGATED CO-COMMISSIONING,TOTLEY RISE MEDICAL CENTRE,27407052,"2,304.18 "
Department of Health,NHS Sheffield CCG,31/05/2019,C&M-GMS Cost of Drugs -Prescribing,LOCAL ENHANCED SERVICES,TRAMWAYS MEDICAL CENTRE,27407054,"1,459.26 "
Department of Health,NHS Sheffield CCG,31/05/2019,C&M-GMS DES Learn Dsblty Hlth Chk,PRC DELEGATED CO-COMMISSIONING,TRAMWAYS MEDICAL CENTRE,27407054,"4,060.00 "
Department of Health,NHS Sheffield CCG,31/05/2019,C&M-GMS DES Minor Surgery,PRC DELEGATED CO-COMMISSIONING,TRAMWAYS MEDICAL CENTRE,27407054,"8,625.00 "
Department of Health,NHS Sheffield CCG,31/05/2019,C&M-GMS Global Sum,PRC DELEGATED CO-COMMISSIONING,TRAMWAYS MEDICAL CENTRE,27407054,"61,245.61 "
Department of Health,NHS Sheffield CCG,31/05/2019,C&M-GMS PCO Other,PRC DELEGATED CO-COMMISSIONING,TRAMWAYS MEDICAL CENTRE,27407054,"1,069.20 "
Department of Health,NHS Sheffield CCG,31/05/2019,C&M-GMS Prem Cost Rent,PRC DELEGATED CO-COMMISSIONING,TRAMWAYS MEDICAL CENTRE,27407054,"4,012.75 "
Department of Health,NHS Sheffield CCG,31/05/2019,C&M-GMS Prof Fees Prescribing,PRC DELEGATED CO-COMMISSIONING,TRAMWAYS MEDICAL CENTRE,27407054,233.87 
Department of Health,NHS Sheffield CCG,31/05/2019,C&M-GMS QOF Aspiration,PRC DELEGATED CO-COMMISSIONING,TRAMWAYS MEDICAL CENTRE,27407054,"5,645.42 "
Department of Health,NHS Sheffield CCG,31/05/2019,Hcare Srv Rec NHS Trust-Contract Baseline,ACUTE COMMISSIONING,UNITED LINCOLNSHIRE HOSPITALS NHS TRUST,27442759,"42,747.90 "
Department of Health,NHS Sheffield CCG,31/05/2019,C&M-PMS Contract Value,PRC DELEGATED CO-COMMISSIONING,UNIVERSITY HEALTH SERVICE,27182488,"178,756.17 "
Department of Health,NHS Sheffield CCG,31/05/2019,C&M-PMS DES Minor Surgery,PRC DELEGATED CO-COMMISSIONING,UNIVERSITY HEALTH SERVICE,27182488,"3,230.00 "
Department of Health,NHS Sheffield CCG,31/05/2019,C&M-PMS Out of Hours Opt Outs,PRC DELEGATED CO-COMMISSIONING,UNIVERSITY HEALTH SERVICE,27182488,567.60 
Department of Health,NHS Sheffield CCG,31/05/2019,C&M-PMS PCO Other,PRC DELEGATED CO-COMMISSIONING,UNIVERSITY HEALTH SERVICE,27182488,"21,869.00 "
Department of Health,NHS Sheffield CCG,31/05/2019,C&M-PMS Prem Notional Rent,PRC DELEGATED CO-COMMISSIONING,UNIVERSITY HEALTH SERVICE,27182488,"15,833.33 "
Department of Health,NHS Sheffield CCG,31/05/2019,C&M-PMS QOF Aspiration,PRC DELEGATED CO-COMMISSIONING,UNIVERSITY HEALTH SERVICE,27182488,"4,031.41 "
Department of Health,NHS Sheffield CCG,31/05/2019,C&M-GMS Cost of Drugs -Prescribing,LOCAL ENHANCED SERVICES,UPPERTHORPE MEDICAL CENTRE,27407057,"3,255.98 "
Department of Health,NHS Sheffield CCG,31/05/2019,C&M-GMS DES Minor Surgery,PRC DELEGATED CO-COMMISSIONING,UPPERTHORPE MEDICAL CENTRE,27407057,"1,525.00 "
Department of Health,NHS Sheffield CCG,31/05/2019,C&M-GMS Global Sum,PRC DELEGATED CO-COMMISSIONING,UPPERTHORPE MEDICAL CENTRE,27407057,"82,594.63 "
Department of Health,NHS Sheffield CCG,31/05/2019,C&M-GMS MPIG Correction Factor,PRC DELEGATED CO-COMMISSIONING,UPPERTHORPE MEDICAL CENTRE,27407057,662.87 
Department of Health,NHS Sheffield CCG,31/05/2019,C&M-GMS PCO Other,PRC DELEGATED CO-COMMISSIONING,UPPERTHORPE MEDICAL CENTRE,27407057,"7,134.00 "
Department of Health,NHS Sheffield CCG,31/05/2019,C&M-GMS Prem Notional Rent,PRC DELEGATED CO-COMMISSIONING,UPPERTHORPE MEDICAL CENTRE,27407057,"2,497.83 "
Department of Health,NHS Sheffield CCG,31/05/2019,C&M-GMS Prem Rates,PRC DELEGATED CO-COMMISSIONING,UPPERTHORPE MEDICAL CENTRE,27407057,"2,318.00 "
Department of Health,NHS Sheffield CCG,31/05/2019,C&M-GMS Prem Water Rates,PRC DELEGATED CO-COMMISSIONING,UPPERTHORPE MEDICAL CENTRE,27407057,141.23 
Department of Health,NHS Sheffield CCG,31/05/2019,C&M-GMS Prof Fees Prescribing,PRC DELEGATED CO-COMMISSIONING,UPPERTHORPE MEDICAL CENTRE,27407057,385.50 
Department of Health,NHS Sheffield CCG,31/05/2019,C&M-GMS QOF Aspiration,PRC DELEGATED CO-COMMISSIONING,UPPERTHORPE MEDICAL CENTRE,27407057,"9,072.83 "
Department of Health,NHS Sheffield CCG,31/05/2019,C&M-PMS Contract Value,PRC DELEGATED CO-COMMISSIONING,UPWELL STREET SURGERY,27182490,"37,519.58 "
Department of Health,NHS Sheffield CCG,31/05/2019,C&M-PMS DES Minor Surgery,PRC DELEGATED CO-COMMISSIONING,UPWELL STREET SURGERY,27182490,280.00 
Department of Health,NHS Sheffield CCG,31/05/2019,C&M-PMS Out of Hours Opt Outs,PRC DELEGATED CO-COMMISSIONING,UPWELL STREET SURGERY,27182490,1.80 
Department of Health,NHS Sheffield CCG,31/05/2019,C&M-PMS PCO Other,PRC DELEGATED CO-COMMISSIONING,UPWELL STREET SURGERY,27182490,649.60 
Department of Health,NHS Sheffield CCG,31/05/2019,C&M-PMS Prem Notional Rent,PRC DELEGATED CO-COMMISSIONING,UPWELL STREET SURGERY,27182490,"8,137.50 "
Department of Health,NHS Sheffield CCG,31/05/2019,C&M-PMS Prem Rates,PRC DELEGATED CO-COMMISSIONING,UPWELL STREET SURGERY,27182490,"1,340.00 "
Department of Health,NHS Sheffield CCG,31/05/2019,C&M-PMS QOF Aspiration,PRC DELEGATED CO-COMMISSIONING,UPWELL STREET SURGERY,27182490,"4,056.38 "
Department of Health,NHS Sheffield CCG,31/05/2019,C&M-PMS Contract Value,PRC DELEGATED CO-COMMISSIONING,VALLEY MEDICAL CENTRE,27204009,"78,341.03 "
Department of Health,NHS Sheffield CCG,31/05/2019,C&M-PMS DES Learn Dsblty Hlth Chk,PRC DELEGATED CO-COMMISSIONING,VALLEY MEDICAL CENTRE,27204009,"4,340.00 "
Department of Health,NHS Sheffield CCG,31/05/2019,C&M-PMS DES Minor Surgery,PRC DELEGATED CO-COMMISSIONING,VALLEY MEDICAL CENTRE,27204009,"1,800.00 "
Department of Health,NHS Sheffield CCG,31/05/2019,C&M-PMS PCO Locum Adop/Pat/Mat,PRC DELEGATED CO-COMMISSIONING,VALLEY MEDICAL CENTRE,27204009,"5,568.37 "
Department of Health,NHS Sheffield CCG,31/05/2019,C&M-PMS PCO Other,PRC DELEGATED CO-COMMISSIONING,VALLEY MEDICAL CENTRE,27204009,"5,990.00 "
Department of Health,NHS Sheffield CCG,31/05/2019,C&M-PMS Prem Rates,PRC DELEGATED CO-COMMISSIONING,VALLEY MEDICAL CENTRE,27204009,"1,664.00 "
Department of Health,NHS Sheffield CCG,31/05/2019,C&M-PMS Prem Water Rates,PRC DELEGATED CO-COMMISSIONING,VALLEY MEDICAL CENTRE,27204009,400.03 
Department of Health,NHS Sheffield CCG,31/05/2019,C&M-PMS QOF Aspiration,PRC DELEGATED CO-COMMISSIONING,VALLEY MEDICAL CENTRE,27204009,"8,453.91 "
Department of Health,NHS Sheffield CCG,31/05/2019,C&M-GMS Cost of Drugs -Prescribing,LOCAL ENHANCED SERVICES,WALKLEY HOUSE MEDICAL CENTRE,27407061,"1,114.14 "
Department of Health,NHS Sheffield CCG,31/05/2019,C&M-GMS DES Minor Surgery,PRC DELEGATED CO-COMMISSIONING,WALKLEY HOUSE MEDICAL CENTRE,27407061,"1,395.00 "
Department of Health,NHS Sheffield CCG,31/05/2019,C&M-GMS Global Sum,PRC DELEGATED CO-COMMISSIONING,WALKLEY HOUSE MEDICAL CENTRE,27407061,"85,060.17 "
Department of Health,NHS Sheffield CCG,31/05/2019,C&M-GMS PCO Other,PRC DELEGATED CO-COMMISSIONING,WALKLEY HOUSE MEDICAL CENTRE,27407061,"7,309.00 "
Department of Health,NHS Sheffield CCG,31/05/2019,C&M-GMS Prem Notional Rent,PRC DELEGATED CO-COMMISSIONING,WALKLEY HOUSE MEDICAL CENTRE,27407061,"5,635.50 "
Department of Health,NHS Sheffield CCG,31/05/2019,C&M-GMS Prem Rates,PRC DELEGATED CO-COMMISSIONING,WALKLEY HOUSE MEDICAL CENTRE,27407061,"1,845.00 "
Department of Health,NHS Sheffield CCG,31/05/2019,C&M-GMS Prof Fees Prescribing,PRC DELEGATED CO-COMMISSIONING,WALKLEY HOUSE MEDICAL CENTRE,27407061,164.48 
Department of Health,NHS Sheffield CCG,31/05/2019,C&M-GMS QOF Aspiration,PRC DELEGATED CO-COMMISSIONING,WALKLEY HOUSE MEDICAL CENTRE,27407061,"8,602.90 "
Department of Health,NHS Sheffield CCG,31/05/2019,C&M-GMS DES Learn Dsblty Hlth Chk,PRC DELEGATED CO-COMMISSIONING,WHITE HOUSE SURGERY SHEFFIELD,27407060,"3,500.00 "
Department of Health,NHS Sheffield CCG,31/05/2019,C&M-GMS DES Minor Surgery,PRC DELEGATED CO-COMMISSIONING,WHITE HOUSE SURGERY SHEFFIELD,27407060,160.00 
Department of Health,NHS Sheffield CCG,31/05/2019,C&M-GMS Global Sum,PRC DELEGATED CO-COMMISSIONING,WHITE HOUSE SURGERY SHEFFIELD,27407060,"51,313.04 "
Department of Health,NHS Sheffield CCG,31/05/2019,C&M-GMS MPIG Correction Factor,PRC DELEGATED CO-COMMISSIONING,WHITE HOUSE SURGERY SHEFFIELD,27407060,695.65 
Department of Health,NHS Sheffield CCG,31/05/2019,C&M-GMS PCO Other,PRC DELEGATED CO-COMMISSIONING,WHITE HOUSE SURGERY SHEFFIELD,27407060,"4,218.00 "
Department of Health,NHS Sheffield CCG,31/05/2019,C&M-GMS Prem Notional Rent,PRC DELEGATED CO-COMMISSIONING,WHITE HOUSE SURGERY SHEFFIELD,27407060,"9,412.50 "
Department of Health,NHS Sheffield CCG,31/05/2019,C&M-GMS Prem Rates,PRC DELEGATED CO-COMMISSIONING,WHITE HOUSE SURGERY SHEFFIELD,27407060,"2,443.00 "
Department of Health,NHS Sheffield CCG,31/05/2019,C&M-GMS QOF Aspiration,PRC DELEGATED CO-COMMISSIONING,WHITE HOUSE SURGERY SHEFFIELD,27407060,"6,233.52 "
Department of Health,NHS Sheffield CCG,31/05/2019,Cont Care-Physical Disab (<65),CHC ADULT FULLY FUNDED,WILLOWBECK HEALTH CARE LTD,27253720,"136,610.05 "
Department of Health,NHS Sheffield CCG,31/05/2019,C&M-PMS Contract Value,PRC DELEGATED CO-COMMISSIONING,WINCOBANK MEDICAL CENTRE,27182495,"62,213.71 "
Department of Health,NHS Sheffield CCG,31/05/2019,C&M-PMS DES Learn Dsblty Hlth Chk,PRC DELEGATED CO-COMMISSIONING,WINCOBANK MEDICAL CENTRE,27182495,700.00 
Department of Health,NHS Sheffield CCG,31/05/2019,C&M-PMS DES Minor Surgery,PRC DELEGATED CO-COMMISSIONING,WINCOBANK MEDICAL CENTRE,27182495,"1,880.00 "
Department of Health,NHS Sheffield CCG,31/05/2019,C&M-PMS Prem Healthcentre Rent,PRC DELEGATED CO-COMMISSIONING,WINCOBANK MEDICAL CENTRE,27182495,"44,024.51 "
Department of Health,NHS Sheffield CCG,31/05/2019,C&M-PMS QOF Aspiration,PRC DELEGATED CO-COMMISSIONING,WINCOBANK MEDICAL CENTRE,27182495,"6,283.36 "
Department of Health,NHS Sheffield CCG,31/05/2019,C&M-PMS GP Statutory Levy,PRC DELEGATED CO-COMMISSIONING,WOODHOUSE HEALTH CENTRE,27182492,(368.16)
Department of Health,NHS Sheffield CCG,31/05/2019,C&M-PMS Out of Hours Opt Outs,PRC DELEGATED CO-COMMISSIONING,WOODHOUSE HEALTH CENTRE,27182492,"(4,717.64)"
Department of Health,NHS Sheffield CCG,31/05/2019,C&M-PMS Voluntary Levy,PRC DELEGATED CO-COMMISSIONING,WOODHOUSE HEALTH CENTRE,27182492,(61.36)
Department of Health,NHS Sheffield CCG,31/05/2019,C&M-PMS Contract Value,PRC DELEGATED CO-COMMISSIONING,WOODHOUSE HEALTH CENTRE,27182493,"100,509.88 "
Department of Health,NHS Sheffield CCG,31/05/2019,C&M-PMS DES Learn Dsblty Hlth Chk,PRC DELEGATED CO-COMMISSIONING,WOODHOUSE HEALTH CENTRE,27182493,"12,320.00 "
Department of Health,NHS Sheffield CCG,31/05/2019,C&M-PMS DES Minor Surgery,PRC DELEGATED CO-COMMISSIONING,WOODHOUSE HEALTH CENTRE,27182493,"2,200.00 "
Department of Health,NHS Sheffield CCG,31/05/2019,C&M-PMS PCO Other,PRC DELEGATED CO-COMMISSIONING,WOODHOUSE HEALTH CENTRE,27182493,"1,492.80 "
Department of Health,NHS Sheffield CCG,31/05/2019,C&M-PMS Prem Notional Rent,PRC DELEGATED CO-COMMISSIONING,WOODHOUSE HEALTH CENTRE,27182493,"6,338.58 "
Department of Health,NHS Sheffield CCG,31/05/2019,C&M-PMS Prem Water Rates,PRC DELEGATED CO-COMMISSIONING,WOODHOUSE HEALTH CENTRE,27182493,439.25 
Department of Health,NHS Sheffield CCG,31/05/2019,C&M-PMS QOF Aspiration,PRC DELEGATED CO-COMMISSIONING,WOODHOUSE HEALTH CENTRE,27182493,"13,912.30 "
Department of Health,NHS Sheffield CCG,31/05/2019,C&M-PMS LES Presc Incentive Sch,LOCAL ENHANCED SERVICES,WOODHOUSE HEALTH CENTRE,27253693,"115,569.60 "
Department of Health,NHS Sheffield CCG,31/05/2019,C&M-PMS Contract Value,PRC DELEGATED CO-COMMISSIONING,WOODSEATS MEDICAL CENTRE,27183819,"77,033.31 "
Department of Health,NHS Sheffield CCG,31/05/2019,C&M-PMS DES Learn Dsblty Hlth Chk,PRC DELEGATED CO-COMMISSIONING,WOODSEATS MEDICAL CENTRE,27183819,"3,780.00 "
Department of Health,NHS Sheffield CCG,31/05/2019,C&M-PMS DES Minor Surgery,PRC DELEGATED CO-COMMISSIONING,WOODSEATS MEDICAL CENTRE,27183819,"4,020.00 "
Department of Health,NHS Sheffield CCG,31/05/2019,C&M-PMS Prem Notional Rent,PRC DELEGATED CO-COMMISSIONING,WOODSEATS MEDICAL CENTRE,27183819,"11,666.67 "
Department of Health,NHS Sheffield CCG,31/05/2019,C&M-PMS Prem Rates,PRC DELEGATED CO-COMMISSIONING,WOODSEATS MEDICAL CENTRE,27183819,"3,100.00 "
Department of Health,NHS Sheffield CCG,31/05/2019,C&M-PMS QOF Aspiration,PRC DELEGATED CO-COMMISSIONING,WOODSEATS MEDICAL CENTRE,27183819,"8,242.64 "
Department of Health,NHS Sheffield CCG,31/05/2019,External Consultancy Fees,CLINICAL LEADS,YORKSHIRE & HUMBER AHSN LTD,27453257,"70,560.00 "
Department of Health,NHS Sheffield CCG,31/05/2019,Hcare Srv Rec NHS Trust-Contract Baseline,PATIENT TRANSPORT,YORKSHIRE AMBULANCE SERVICE NHS TRUST,27084412,"254,037.11 "
Department of Health,NHS Sheffield CCG,31/05/2019,Hcare Srv Rec NHS Trust-Contract Baseline,NHS 111,YORKSHIRE AMBULANCE SERVICE NHS TRUST,27084418,"133,605.27 "
Department of Health,NHS Sheffield CCG,31/05/2019,Hcare Srv Rec NHS Trust-Contract Baseline,AMBULANCE SERVICES,YORKSHIRE AMBULANCE SERVICE NHS TRUST,27084433,"1,674,240.00 "
Department of Health,NHS Sheffield CCG,31/05/2019,Hcare Srv Rec NHS Trust-Contract Baseline,AMBULANCE SERVICES,YORKSHIRE AMBULANCE SERVICE NHS TRUST,27253713,"125,843.75 "
Department of Health,NHS Sheffield CCG,31/05/2019,Hcare Srv Rec NHS Trust-Contract Baseline,AMBULANCE SERVICES,YORKSHIRE AMBULANCE SERVICE NHS TRUST,27253714,"125,843.75 "
